Period,Unique Record Identifier,Account,Account Code Description,Supplier Name, Amount  
201903,201903100062,R5350,Web Design & Running Costs,Crowd Technologies t/a CrowdControl HQ,600.00
201903,201903100674,R6785,Contributions - PCC Commissioning Services,Carlisle Street Pastors (The Ascension Trust),"2,100.00"
201903,201903100962,R6785,Contributions - PCC Commissioning Services,Cumbria Partnership NHS Foundation Trust,"42,000.00"
201903,201903100965,R2700,Cleaning Contract,Cumbria Partnership NHS Foundation Trust,"2,186.25"
201903,201903100968,R2600,Rent,Cumbria Partnership NHS Foundation Trust,"1,400.00"
201903,201903101040,R6785,Contributions - PCC Commissioning Services,Young Cumbria,"10,168.97"
201903,201903101043,R6785,Contributions - PCC Commissioning Services,Young Cumbria,656.66
201903,201903101242,R4920,SARC Doctors,G4S Health Services (UK) Ltd,"19,172.42"
201903,201903101387,R6785,Contributions - PCC Commissioning Services,Victim Support,"18,734.00"
201903,201903101390,R6785,Contributions - PCC Commissioning Services,Victim Support,"81,068.25"
201903,201903101393,R6785,Contributions - PCC Commissioning Services,Victim Support,"45,404.33"
201903,201903102226,R6785,Contributions - PCC Commissioning Services,Resource Creatives Enterprises Ltd,"3,046.00"
201903,201903102229,R6785,Contributions - PCC Commissioning Services,Dignity in Dementia,"2,166.67"
201903,201903102354,R4155,External Printing,Absolute Digital Prints Ltd,"1,303.00"
201903,201903102365,R6785,Contributions - PCC Commissioning Services,Cowran Care Ltd,"1,996.00"
201903,201903102394,R6785,Contributions - PCC Commissioning Services,Women's Community Matters,"14,031.80"
201903,201903102397,R6785,Contributions - PCC Commissioning Services,Women's Community Matters,"3,307.52"
201903,201903102457,R4922,SARC Counselling Services,The Birchall Trust,"5,543.20"
201903,201903102460,R4922,SARC Counselling Services,The Birchall Trust,"1,385.80"
201903,201903102490,R6785,Contributions - PCC Commissioning Services,Brathay Trust,"4,303.25"
201903,201903102625,R1710,ICT Training,QA Training Ltd,"2,741.00"
201903,201903102828,R6785,Contributions - PCC Commissioning Services,Alterego Creative Solutions Ltd,"20,010.00"
201903,201903103066,R6785,Contributions - PCC Commissioning Services,Restorative Solutions CIC,"15,375.00"
201903,201903103069,R6785,Contributions - PCC Commissioning Services,Restorative Solutions CIC,"9,500.00"
201903,201903103952,R6710,Subscriptions,Association of Police and Crime Commissioners,"1,094.81"
201903,201903104645,R6785,Contributions - PCC Commissioning Services,Cumbria Gateway,"9,524.00"
201903,201903105113,R6785,Contributions - PCC Commissioning Services,Cumbria County Council,812.27
201903,201903105325,R2565,Sewerage & Environmental Services,Cumbria Partnership NHS Foundation Trust,"1,854.06"
201903,201903105541,R6785,Contributions - PCC Commissioning Services,Time to Change (West Cumbria) Project CIC,"5,250.00"
201903,201903105589,R4920,SARC Doctors,G4S Health Services (UK) Ltd,"19,172.42"
201903,201903105760,R6785,Contributions - PCC Commissioning Services,Victim Support,"45,404.33"
201903,201903105763,R6785,Contributions - PCC Commissioning Services,Victim Support,"18,734.00"
201903,201903106532,R6785,Contributions - PCC Commissioning Services,Dignity in Dementia,"2,166.67"
201903,201903106802,R6785,Contributions - PCC Commissioning Services,Our Place Youth Project/ Ambleside Parish Centre,900.00
201903,201903108111,R6785,Contributions - PCC Commissioning Services,Remedi-Restorative Services,"9,041.67"
201903,201903108114,R6785,Contributions - PCC Commissioning Services,Remedi-Restorative Services,"9,041.67"
201903,201903109329,R4922,SARC Counselling Services,Safety Net (UK) - Advice & Support Centre,"11,086.40"
201903,201903109332,R4922,SARC Counselling Services,Safety Net (UK) - Advice & Support Centre,"2,771.60"
201903,201903109335,R4922,SARC Counselling Services,Safety Net (UK) - Advice & Support Centre,"33,928.25"
201903,201903109336,R4922,SARC Counselling Services,Safety Net (UK) - Advice & Support Centre,"2,714.26"
201903,201903109459,R6785,Contributions - PCC Commissioning Services,Wigton Youth Station,"2,000.00"
201903,201903109590,R6785,Contributions - PCC Commissioning Services,Cumbria Partnership NHS Foundation Trust,"42,000.00"
201903,201903109646,R6785,Contributions - PCC Commissioning Services,Young Cumbria,"8,194.83"
201903,201903109900,R4920,SARC Doctors,G4S Health Services (UK) Ltd,"19,172.42"
201903,201903109998,R6785,Contributions - PCC Commissioning Services,Victim Support,"18,734.00"
201903,201903110001,R6785,Contributions - PCC Commissioning Services,Victim Support,"6,000.00"
201903,201903110004,R6785,Contributions - PCC Commissioning Services,Victim Support,"45,404.33"
201903,201903110881,R6785,Contributions - PCC Commissioning Services,The Well Communities C.I.C,"7,000.00"
201903,201903110888,R6785,Contributions - PCC Commissioning Services,Resource Creatives Enterprises Ltd,"10,500.00"
201903,201903110900,R6785,Contributions - PCC Commissioning Services,Dignity in Dementia,"2,166.67"
201903,201903111433,R6830,External Audit Fee,Grant Thornton UK LLP,"5,840.00"
201903,201903111635,R6785,Contributions - PCC Commissioning Services,Restorative Solutions CIC,"15,375.00"
201903,201903112386,R6785,Contributions - PCC Commissioning Services,Remedi-Restorative Services,"9,041.67"
201903,201903103757,R5600,Postage Costs,Royal Mail,926.96
201903,201903103762,R5600,Postage Costs,Royal Mail,"1,154.53"
201903,201903108128,R5600,Postage Costs,Royal Mail,"1,859.59"
201903,201903108138,R5600,Postage Costs,Royal Mail,"1,825.13"
201903,201903108149,R5600,Postage Costs,Royal Mail,996.62
201903,201903108154,R5600,Postage Costs,Royal Mail,"1,485.00"
201903,201903108163,R4005,Office Equipment - Maintenance,Francotyp Postalia Ltd,"1,240.64"
201903,201903110748,R5865,Operational Equipment - Other,Cycling Uk,592.18
201903,201903112413,R5600,Postage Costs,Royal Mail,927.88
201903,201903112424,R5600,Postage Costs,Royal Mail,"1,086.69"
201903,201903101329,R7090,Other Collaboration Payments,Police and Crime Commissioner for Cheshire,"6,985.25"
201903,201903101332,R7090,Other Collaboration Payments,Police and Crime Commissioner for Cheshire,"4,733.68"
201903,201903102196,R7090,Other Collaboration Payments,Police and Crime Commissioner for Merseyside,"7,071.92"
201903,201903103163,R7090,Other Collaboration Payments,Police and Crime Commissioner for Lancashire,"4,415.47"
201903,201903109968,R7090,Other Collaboration Payments,Police and Crime Commissioner for Cheshire,"6,585.07"
201903,201903110875,R7090,Other Collaboration Payments,Police and Crime Commissioner for Merseyside,"5,958.41"
201903,201903111700,R7090,Other Collaboration Payments,Police and Crime Commissioner for Lancashire,"25,870.00"
201903,201903112540,R7082,National Police Chiefs Council (NPCC),Mayor's Office for Policing and Crime,"10,050.00"
201903,201903112543,R7080,National Police Co-ordination Centre (NPoCC),Mayor's Office for Policing and Crime,"15,162.00"
201903,201903100157,R4630,Detained Persons - Appropriate Adult Services,Child Action North West,"8,330.28"
201903,201903100894,R1630,Other Operational Training,Lyon Equipment Ltd,570.00
201903,201903101092,R4625,Detained Persons - Laundry,Shortridge Laundry,815.26
201903,201903101095,R4625,Detained Persons - Laundry,Shortridge Laundry,555.20
201903,201903101101,R6702,Redacted: The information is confidential or would attract an exemption under the Freedom of Information Act ,Redacted: The information is confidential or would attract an exemption under the Freedom of Information Act ,"5,292.57"
201903,201903101239,R4900,Redacted: The information is confidential or would attract an exemption under the Freedom of Information Act ,Redacted: The information is confidential or would attract an exemption under the Freedom of Information Act ,"107,330.20"
201903,201903101343,R5865,Redacted: The information is confidential or would attract an exemption under the Freedom of Information Act ,Redacted: The information is confidential or would attract an exemption under the Freedom of Information Act ,"1,056.40"
201903,201903101720,R4625,Redacted: The information is confidential or would attract an exemption under the Freedom of Information Act ,Redacted: The information is confidential or would attract an exemption under the Freedom of Information Act ,"1,176.03"
201903,201903101760,R4605,Redacted: The information is confidential or would attract an exemption under the Freedom of Information Act ,Redacted: The information is confidential or would attract an exemption under the Freedom of Information Act ,538.56
201903,201903101771,R4605,Redacted: The information is confidential or would attract an exemption under the Freedom of Information Act ,Redacted: The information is confidential or would attract an exemption under the Freedom of Information Act ,600.00
201903,201903101786,R4605,Redacted: The information is confidential or would attract an exemption under the Freedom of Information Act ,Redacted: The information is confidential or would attract an exemption under the Freedom of Information Act ,540.00
201903,201903101866,R1630,Redacted: The information is confidential or would attract an exemption under the Freedom of Information Act ,Redacted: The information is confidential or would attract an exemption under the Freedom of Information Act ,"1,250.00"
201903,201903102039,R5980,Redacted: The information is confidential or would attract an exemption under the Freedom of Information Act ,Redacted: The information is confidential or would attract an exemption under the Freedom of Information Act ,795.00
201903,201903102218,R1880,Redacted: The information is confidential or would attract an exemption under the Freedom of Information Act ,Redacted: The information is confidential or would attract an exemption under the Freedom of Information Act ,"1,592.50"
201903,201903102911,C5790,Redacted: The information is confidential or would attract an exemption under the Freedom of Information Act ,Redacted: The information is confidential or would attract an exemption under the Freedom of Information Act ,"1,210.00"
201903,201903102934,R6610,Redacted: The information is confidential or would attract an exemption under the Freedom of Information Act ,Redacted: The information is confidential or would attract an exemption under the Freedom of Information Act ,"2,242.00"
201903,201903102990,R4950,Redacted: The information is confidential or would attract an exemption under the Freedom of Information Act ,Redacted: The information is confidential or would attract an exemption under the Freedom of Information Act ,"1,538.57"
201903,201903103171,R5835,Redacted: The information is confidential or would attract an exemption under the Freedom of Information Act ,Redacted: The information is confidential or would attract an exemption under the Freedom of Information Act ,"2,749.50"
201903,201903103174,R5835,Redacted: The information is confidential or would attract an exemption under the Freedom of Information Act ,Redacted: The information is confidential or would attract an exemption under the Freedom of Information Act ,"2,749.50"
201903,201903103177,R1630,Redacted: The information is confidential or would attract an exemption under the Freedom of Information Act ,Redacted: The information is confidential or would attract an exemption under the Freedom of Information Act ,"12,000.00"
201903,201903103854,R1630,Redacted: The information is confidential or would attract an exemption under the Freedom of Information Act ,Redacted: The information is confidential or would attract an exemption under the Freedom of Information Act ,"2,500.00"
201903,201903104075,C5980,Redacted: The information is confidential or would attract an exemption under the Freedom of Information Act ,Redacted: The information is confidential or would attract an exemption under the Freedom of Information Act ,"33,150.00"
201903,201903104278,R6780,Redacted: The information is confidential or would attract an exemption under the Freedom of Information Act ,Redacted: The information is confidential or would attract an exemption under the Freedom of Information Act ,"2,000.00"
201903,201903104299,C5980,Redacted: The information is confidential or would attract an exemption under the Freedom of Information Act ,Redacted: The information is confidential or would attract an exemption under the Freedom of Information Act ,"9,100.00"
201903,201903104413,R4630,Redacted: The information is confidential or would attract an exemption under the Freedom of Information Act ,Redacted: The information is confidential or would attract an exemption under the Freedom of Information Act ,"7,668.32"
201903,201903105350,R5916,Redacted: The information is confidential or would attract an exemption under the Freedom of Information Act ,Redacted: The information is confidential or would attract an exemption under the Freedom of Information Act ,650.23
201903,201903105406,R6990,Redacted: The information is confidential or would attract an exemption under the Freedom of Information Act ,Redacted: The information is confidential or would attract an exemption under the Freedom of Information Act ,660.00
201903,201903105443,R4625,Redacted: The information is confidential or would attract an exemption under the Freedom of Information Act ,Redacted: The information is confidential or would attract an exemption under the Freedom of Information Act ,759.64
201903,201903105446,R4625,Redacted: The information is confidential or would attract an exemption under the Freedom of Information Act ,Redacted: The information is confidential or would attract an exemption under the Freedom of Information Act ,576.20
201903,201903105452,R6702,Redacted: The information is confidential or would attract an exemption under the Freedom of Information Act ,Redacted: The information is confidential or would attract an exemption under the Freedom of Information Act ,"5,674.00"
201903,201903105592,R4900,Redacted: The information is confidential or would attract an exemption under the Freedom of Information Act ,Redacted: The information is confidential or would attract an exemption under the Freedom of Information Act ,"107,330.20"
201903,201903105696,R1630,Redacted: The information is confidential or would attract an exemption under the Freedom of Information Act ,Redacted: The information is confidential or would attract an exemption under the Freedom of Information Act ,"5,865.63"
201903,201903105698,R1630,Redacted: The information is confidential or would attract an exemption under the Freedom of Information Act ,Redacted: The information is confidential or would attract an exemption under the Freedom of Information Act ,"5,865.63"
201903,201903106032,R1620,Redacted: The information is confidential or would attract an exemption under the Freedom of Information Act ,Redacted: The information is confidential or would attract an exemption under the Freedom of Information Act ,"1,300.00"
201903,201903106321,R6610,Redacted: The information is confidential or would attract an exemption under the Freedom of Information Act ,Redacted: The information is confidential or would attract an exemption under the Freedom of Information Act ,"1,145.00"
201903,201903106327,R6780,Redacted: The information is confidential or would attract an exemption under the Freedom of Information Act ,Redacted: The information is confidential or would attract an exemption under the Freedom of Information Act ,"10,000.00"
201903,201903106505,R4600,Redacted: The information is confidential or would attract an exemption under the Freedom of Information Act ,Redacted: The information is confidential or would attract an exemption under the Freedom of Information Act ,641.43
201903,201903106549,R6702,Redacted: The information is confidential or would attract an exemption under the Freedom of Information Act ,Redacted: The information is confidential or would attract an exemption under the Freedom of Information Act ,"2,287.87"
201903,201903106552,R6702,Redacted: The information is confidential or would attract an exemption under the Freedom of Information Act ,Redacted: The information is confidential or would attract an exemption under the Freedom of Information Act ,"1,733.00"
201903,201903106558,R6702,Redacted: The information is confidential or would attract an exemption under the Freedom of Information Act ,Redacted: The information is confidential or would attract an exemption under the Freedom of Information Act ,"1,122.00"
201903,201903106561,R6702,Redacted: The information is confidential or would attract an exemption under the Freedom of Information Act ,Redacted: The information is confidential or would attract an exemption under the Freedom of Information Act ,651.42
201903,201903106564,R6702,Redacted: The information is confidential or would attract an exemption under the Freedom of Information Act ,Redacted: The information is confidential or would attract an exemption under the Freedom of Information Act ,"1,926.29"
201903,201903106893,R1720,Redacted: The information is confidential or would attract an exemption under the Freedom of Information Act ,Redacted: The information is confidential or would attract an exemption under the Freedom of Information Act ,"2,000.00"
201903,201903106990,R1630,Redacted: The information is confidential or would attract an exemption under the Freedom of Information Act ,Redacted: The information is confidential or would attract an exemption under the Freedom of Information Act ,821.72
201903,201903107252,R5980,Redacted: The information is confidential or would attract an exemption under the Freedom of Information Act ,Redacted: The information is confidential or would attract an exemption under the Freedom of Information Act ,"23,166.00"
201903,201903107279,R4950,Redacted: The information is confidential or would attract an exemption under the Freedom of Information Act ,Redacted: The information is confidential or would attract an exemption under the Freedom of Information Act ,"3,594.90"
201903,201903107430,R1630,Redacted: The information is confidential or would attract an exemption under the Freedom of Information Act ,Redacted: The information is confidential or would attract an exemption under the Freedom of Information Act ,"3,960.00"
201903,201903108235,R1630,Redacted: The information is confidential or would attract an exemption under the Freedom of Information Act ,Redacted: The information is confidential or would attract an exemption under the Freedom of Information Act ,"2,412.00"
201903,201903108396,C5980,Redacted: The information is confidential or would attract an exemption under the Freedom of Information Act ,Redacted: The information is confidential or would attract an exemption under the Freedom of Information Act ,"1,275.00"
201903,201903108673,R4630,Redacted: The information is confidential or would attract an exemption under the Freedom of Information Act ,Redacted: The information is confidential or would attract an exemption under the Freedom of Information Act ,"9,771.30"
201903,201903109710,R6702,Redacted: The information is confidential or would attract an exemption under the Freedom of Information Act ,Redacted: The information is confidential or would attract an exemption under the Freedom of Information Act ,"5,472.00"
201903,201903109726,R6990,Other Miscellaneous Expenditure,Spencer Ivison,570.00
201903,201903109897,R4900,Custody Medical Contract,G4S Health Services (UK) Ltd,"107,330.20"
201903,201903110509,R4605,Detained Persons - Clothing,Charles Fellows Supplies Limited,600.00
201903,201903111361,R1630,Other Operational Training,Police and Crime Commissioner for Kent,"2,950.00"
201903,201903111397,R5840,Operational Equipment - UAV / Drones Purchase,Colena Ltd (Heliguy),"1,030.83"
201903,201903111442,R5980,Firearms Equipment,Axon Public Safety UK Limited,"5,075.00"
201903,201903111714,R5835,Operational Equipment - Testing Kits & Consumables,D TEC International Ltd,"3,518.00"
201903,201903112482,R1720,Other Support Function Training,College of Policing (NPIA),622.50
201903,201903112672,R7295,Contribution to NPAS,Police and Crime Commissioner for West Yorkshire,"3,824.00"
201903,201903112675,R1630,Other Operational Training,Police and Crime Commissioner for West Yorkshire,"6,560.00"
201903,201903100067,R1630,Other Operational Training,Police and Crime Commissioner for West Midlands,"1,000.00"
201903,201903100069,R1630,Other Operational Training,Police and Crime Commissioner for West Midlands,"1,000.00"
201903,201903101263,R4710,Forensic Analysis - Serious Crime,Key Forensic Services Ltd (Orange UK Holdings Ltd),835.00
201903,201903101265,R4715,Forensic Analysis - Volume Crime,Key Forensic Services Ltd (Orange UK Holdings Ltd),"1,995.50"
201903,201903101273,R4715,Forensic Analysis - Volume Crime,Key Forensic Services Ltd (Orange UK Holdings Ltd),800.00
201903,201903101276,R4705,Forensic Analysis - Over Prescribed Limit,Key Forensic Services Ltd (Orange UK Holdings Ltd),645.00
201903,201903101278,R4705,Forensic Analysis - Over Prescribed Limit,Key Forensic Services Ltd (Orange UK Holdings Ltd),"1,200.00"
201903,201903101286,R4710,Forensic Analysis - Serious Crime,Key Forensic Services Ltd (Orange UK Holdings Ltd),"6,005.00"
201903,201903101288,R4710,Forensic Analysis - Serious Crime,Key Forensic Services Ltd (Orange UK Holdings Ltd),"1,077.50"
201903,201903101290,R4715,Forensic Analysis - Volume Crime,Key Forensic Services Ltd (Orange UK Holdings Ltd),"1,009.50"
201903,201903101292,R4715,Forensic Analysis - Volume Crime,Key Forensic Services Ltd (Orange UK Holdings Ltd),797.00
201903,201903101295,R4715,Forensic Analysis - Volume Crime,Key Forensic Services Ltd (Orange UK Holdings Ltd),520.00
201903,201903101300,R4705,Forensic Analysis - Over Prescribed Limit,Key Forensic Services Ltd (Orange UK Holdings Ltd),840.00
201903,201903101307,R4715,Forensic Analysis - Volume Crime,Key Forensic Services Ltd (Orange UK Holdings Ltd),"1,046.50"
201903,201903101799,R4710,Forensic Analysis - Serious Crime,Cellebrite Uk Ltd,"1,800.00"
201903,201903101802,R4710,Forensic Analysis - Serious Crime,Cellebrite Uk Ltd,"1,800.00"
201903,201903102199,R7065,TITAN - North West Collaboration,Police and Crime Commissioner for Merseyside,"8,213.66"
201903,201903102201,R7065,TITAN - North West Collaboration,Police and Crime Commissioner for Merseyside,"8,598.04"
201903,201903102203,R7065,TITAN - North West Collaboration,Police and Crime Commissioner for Merseyside,"38,670.54"
201903,201903102205,R7065,TITAN - North West Collaboration,Police and Crime Commissioner for Merseyside,"46,553.98"
201903,201903102207,R7065,TITAN - North West Collaboration,Police and Crime Commissioner for Merseyside,"15,930.75"
201903,201903102209,R7065,TITAN - North West Collaboration,Police and Crime Commissioner for Merseyside,"47,948.95"
201903,201903102234,R5950,Redacted: Disclosure of Information would breach the Data Protection Act.,Redacted: Disclosure of Information would breach the Data Protection Act.,806.96
201903,201903102248,R5950,Redacted: Disclosure of Information would breach the Data Protection Act.,Redacted: Disclosure of Information would breach the Data Protection Act.,568.94
201903,201903102656,R5950,Redacted: Disclosure of Information would breach the Data Protection Act.,Redacted: Disclosure of Information would breach the Data Protection Act.,612.62
201903,201903102702,R5790,Operational Equipment - Audio / Video Equipment,David Horn Communications Ltd,664.50
201903,201903102897,R5940,Redacted: The information is confidential or would attract an exemption under the Freedom of Information Act ,Redacted: The information is confidential or would attract an exemption under the Freedom of Information Act ,"1,581.19"
201903,201903102973,R4725,Photographic & Imaging,Wex Photo Video,"1,565.83"
201903,201903103007,R4705,Forensic Analysis - Over Prescribed Limit,Orchid Cellmark Ltd,615.00
201903,201903103012,R4710,Forensic Analysis - Serious Crime,Orchid Cellmark Ltd,896.00
201903,201903103072,R4700,Redacted: Disclosure of Information would breach the Data Protection Act.,Redacted: Disclosure of Information would breach the Data Protection Act.,"2,659.02"
201903,201903103075,R4700,Redacted: Disclosure of Information would breach the Data Protection Act.,Redacted: Disclosure of Information would breach the Data Protection Act.,"2,664.19"
201903,201903103078,R4700,Redacted: Disclosure of Information would breach the Data Protection Act.,Redacted: Disclosure of Information would breach the Data Protection Act.,"2,759.02"
201903,201903103081,R4700,Redacted: Disclosure of Information would breach the Data Protection Act.,Redacted: Disclosure of Information would breach the Data Protection Act.,"2,612.00"
201903,201903103084,R4700,Redacted: Disclosure of Information would breach the Data Protection Act.,Redacted: Disclosure of Information would breach the Data Protection Act.,"2,906.04"
201903,201903103087,R4700,Redacted: Disclosure of Information would breach the Data Protection Act.,Redacted: Disclosure of Information would breach the Data Protection Act.,"2,759.02"
201903,201903103090,R4700,Redacted: Disclosure of Information would breach the Data Protection Act.,Redacted: Disclosure of Information would breach the Data Protection Act.,"2,759.00"
201903,201903103804,R1710,Redacted: Disclosure of Information would breach the Data Protection Act.,Redacted: Disclosure of Information would breach the Data Protection Act.,"1,980.00"
201903,201903103843,R1630,Redacted: Disclosure of Information would breach the Data Protection Act.,Redacted: Disclosure of Information would breach the Data Protection Act.,"4,527.00"
201903,201903103958,R4780,Redacted: Disclosure of Information would breach the Data Protection Act.,Redacted: Disclosure of Information would breach the Data Protection Act.,"4,574.68"
201903,201903103961,R4845,Redacted: Disclosure of Information would breach the Data Protection Act.,Redacted: Disclosure of Information would breach the Data Protection Act.,"2,700.00"
201903,201903104023,R4720,Redacted: Disclosure of Information would breach the Data Protection Act.,Redacted: Disclosure of Information would breach the Data Protection Act.,"1,657.60"
201903,201903104026,R4720,Redacted: Disclosure of Information would breach the Data Protection Act.,Redacted: Disclosure of Information would breach the Data Protection Act.,"4,169.90"
201903,201903104029,R4720,Redacted: Disclosure of Information would breach the Data Protection Act.,Redacted: Disclosure of Information would breach the Data Protection Act.,"1,709.40"
201903,201903104032,R4715,Redacted: Disclosure of Information would breach the Data Protection Act.,Redacted: Disclosure of Information would breach the Data Protection Act.,"1,107.59"
201903,201903104035,R4720,Redacted: Disclosure of Information would breach the Data Protection Act.,Redacted: Disclosure of Information would breach the Data Protection Act.,"2,169.70"
201903,201903104038,R4720,Redacted: Disclosure of Information would breach the Data Protection Act.,Redacted: Disclosure of Information would breach the Data Protection Act.,"1,100.75"
201903,201903104045,R4715,Redacted: Disclosure of Information would breach the Data Protection Act.,Redacted: Disclosure of Information would breach the Data Protection Act.,761.64
201903,201903104117,R1630,Redacted: Disclosure of Information would breach the Data Protection Act.,Redacted: Disclosure of Information would breach the Data Protection Act.,"2,000.00"
201903,201903104119,R1630,Redacted: Disclosure of Information would breach the Data Protection Act.,Redacted: Disclosure of Information would breach the Data Protection Act.,"1,000.00"
201903,201903104122,R1610,Redacted: Disclosure of Information would breach the Data Protection Act.,Redacted: Disclosure of Information would breach the Data Protection Act.,"1,350.00"
201903,201903104125,R1610,Redacted: Disclosure of Information would breach the Data Protection Act.,Redacted: Disclosure of Information would breach the Data Protection Act.,"1,350.00"
201903,201903104520,R5815,Redacted: Disclosure of Information would breach the Data Protection Act.,Redacted: Disclosure of Information would breach the Data Protection Act.,872.38
201903,201903104526,R5815,Redacted: Disclosure of Information would breach the Data Protection Act.,Redacted: Disclosure of Information would breach the Data Protection Act.,"4,128.00"
201903,201903105624,R4710,Redacted: Disclosure of Information would breach the Data Protection Act.,Redacted: Disclosure of Information would breach the Data Protection Act.,"4,025.00"
201903,201903105626,R4710,Redacted: Disclosure of Information would breach the Data Protection Act.,Redacted: Disclosure of Information would breach the Data Protection Act.,752.50
201903,201903105628,R4710,Redacted: Disclosure of Information would breach the Data Protection Act.,Redacted: Disclosure of Information would breach the Data Protection Act.,570.00
201903,201903105631,R4715,Redacted: Disclosure of Information would breach the Data Protection Act.,Redacted: Disclosure of Information would breach the Data Protection Act.,"1,406.00"
201903,201903105637,R4715,Redacted: Disclosure of Information would breach the Data Protection Act.,Redacted: Disclosure of Information would breach the Data Protection Act.,"1,600.00"
201903,201903105642,R4710,Redacted: Disclosure of Information would breach the Data Protection Act.,Redacted: Disclosure of Information would breach the Data Protection Act.,"1,967.50"
201903,201903105644,R4710,Redacted: Disclosure of Information would breach the Data Protection Act.,Redacted: Disclosure of Information would breach the Data Protection Act.,590.00
201903,201903105648,R4715,Redacted: Disclosure of Information would breach the Data Protection Act.,Redacted: Disclosure of Information would breach the Data Protection Act.,529.00
201903,201903105655,R4705,Redacted: Disclosure of Information would breach the Data Protection Act.,Redacted: Disclosure of Information would breach the Data Protection Act.,645.00
201903,201903105666,R4715,Redacted: Disclosure of Information would breach the Data Protection Act.,Redacted: Disclosure of Information would breach the Data Protection Act.,549.00
201903,201903105673,R4705,Redacted: Disclosure of Information would breach the Data Protection Act.,Redacted: Disclosure of Information would breach the Data Protection Act.,"1,350.00"
201903,201903105675,R4705,Redacted: Disclosure of Information would breach the Data Protection Act.,Redacted: Disclosure of Information would breach the Data Protection Act.,750.00
201903,201903105677,R4705,Redacted: Disclosure of Information would breach the Data Protection Act.,Redacted: Disclosure of Information would breach the Data Protection Act.,729.50
201903,201903106097,R5950,Redacted: Disclosure of Information would breach the Data Protection Act.,Redacted: Disclosure of Information would breach the Data Protection Act.,598.65
201903,201903106160,R4845,Redacted: Disclosure of Information would breach the Data Protection Act.,Redacted: Disclosure of Information would breach the Data Protection Act.,"2,219.85"
201903,201903106499,R4700,Redacted: Disclosure of Information would breach the Data Protection Act.,Redacted: Disclosure of Information would breach the Data Protection Act.,680.00
201903,201903106508,R7065,Redacted: Disclosure of Information would breach the Data Protection Act.,Redacted: Disclosure of Information would breach the Data Protection Act.,"6,586.23"
201903,201903106522,R5950,Redacted: Disclosure of Information would breach the Data Protection Act.,Redacted: Disclosure of Information would breach the Data Protection Act.,"1,077.56"
201903,201903107186,R5940,Redacted: The information is confidential or would attract an exemption under the Freedom of Information Act ,Redacted: The information is confidential or would attract an exemption under the Freedom of Information Act ,"1,581.19"
201903,201903107260,R5815,Operational Equipment - Hi-Tech. Crime,Wex Photo Video,"1,790.00"
201903,201903107320,R4710,Forensic Analysis - Serious Crime,Orchid Cellmark Ltd,"1,521.00"
201903,201903107323,R4710,Forensic Analysis - Serious Crime,Orchid Cellmark Ltd,"1,296.00"
201903,201903108215,R1610,CID Training,College of Policing (NPIA),"1,005.00"
201903,201903108221,R1610,CID Training,College of Policing (NPIA),575.00
201903,201903108368,R4720,Forensic Analysis - PACE / DNA,Eurofins Forensic Services Ltd,971.25
201903,201903108376,R4715,Forensic Analysis - Volume Crime,Eurofins Forensic Services Ltd,"1,590.00"
201903,201903108381,R4715,Forensic Analysis - Volume Crime,Eurofins Forensic Services Ltd,604.02
201903,201903108386,R4720,Forensic Analysis - PACE / DNA,Eurofins Forensic Services Ltd,"1,722.35"
201903,201903109886,R4780,CSI Consumables,Scenesafe Previously (WA Products (UK) Ltd),543.14
201903,201903109916,R4710,Forensic Analysis - Serious Crime,Key Forensic Services Ltd (Orange UK Holdings Ltd),"2,979.50"
201903,201903109918,R4710,Forensic Analysis - Serious Crime,Key Forensic Services Ltd (Orange UK Holdings Ltd),570.00
201903,201903109920,R4710,Forensic Analysis - Serious Crime,Key Forensic Services Ltd (Orange UK Holdings Ltd),612.50
201903,201903109924,R4715,Forensic Analysis - Volume Crime,Key Forensic Services Ltd (Orange UK Holdings Ltd),552.50
201903,201903109927,R4715,Forensic Analysis - Volume Crime,Key Forensic Services Ltd (Orange UK Holdings Ltd),566.00
201903,201903109929,R4715,Forensic Analysis - Volume Crime,Key Forensic Services Ltd (Orange UK Holdings Ltd),"1,130.00"
201903,201903109934,R4705,Forensic Analysis - Over Prescribed Limit,Key Forensic Services Ltd (Orange UK Holdings Ltd),525.00
201903,201903109943,R4715,Forensic Analysis - Volume Crime,Key Forensic Services Ltd (Orange UK Holdings Ltd),"1,481.00"
201903,201903109945,R4715,Forensic Analysis - Volume Crime,Key Forensic Services Ltd (Orange UK Holdings Ltd),836.50
201903,201903110431,R1630,Other Operational Training,Police and Crime Commissioner for Durham Constabulary,"4,000.00"
201903,201903110543,R5815,Operational Equipment - Hi-Tech. Crime,Cellebrite Uk Ltd,"22,184.65"
201903,201903110854,R4700,Redacted: Disclosure of Information would breach the Data Protection Act.,Redacted: Disclosure of Information would breach the Data Protection Act.,"1,881.27"
201903,201903110878,R7065,TITAN - North West Collaboration,Police and Crime Commissioner for Merseyside,"13,262.50"
201903,201903111219,R5950,Redacted: Disclosure of Information would breach the Data Protection Act.,Redacted: Disclosure of Information would breach the Data Protection Act.,680.38
201903,201903111364,R1630,Other Operational Training,Police and Crime Commissioner for Kent,"1,000.00"
201903,201903111405,R4845,Expert Witness Testimony / Reports,Quantis Limited,"1,750.00"
201903,201903111427,R5940,Redacted: The information is confidential or would attract an exemption under the Freedom of Information Act ,Redacted: The information is confidential or would attract an exemption under the Freedom of Information Act ,"1,581.19"
201903,201903111490,R4725,Photographic & Imaging,Wex Photo Video,"1,611.96"
201903,201903111493,R4725,Photographic & Imaging,Wex Photo Video,"1,545.31"
201903,201903111555,R4710,Forensic Analysis - Serious Crime,Orchid Cellmark Ltd,"1,095.00"
201903,201903111557,R4710,Forensic Analysis - Serious Crime,Orchid Cellmark Ltd,548.00
201903,201903111562,R4710,Forensic Analysis - Serious Crime,Orchid Cellmark Ltd,"1,443.00"
201903,201903111565,R4715,Forensic Analysis - Volume Crime,Orchid Cellmark Ltd,675.00
201903,201903112627,R4715,Forensic Analysis - Volume Crime,Eurofins Forensic Services Ltd,506.00
201903,201903112630,R4720,Forensic Analysis - PACE / DNA,Eurofins Forensic Services Ltd,"1,722.35"
201903,201903112678,R1610,CID Training,Police and Crime Commissioner for West Yorkshire,750.00
201903,201903105870,R3745,Travel - Public Transport,Capita Travel and Events,"1,430.75"
201903,201903110220,R3745,Travel - Public Transport,Capita Travel and Events,620.50
201903,201903102273,R2640,Room Hire,Castle Green Hotel,"3,350.00"
201903,201903102275,R6745,Other Promotional Expenses,Castle Green Hotel,790.00
201903,201903100742,R1345,Pre '74 Pensions - LGPS,Cumbria County Council,"16,051.31"
201903,201903100745,R1335,Actuarial Strain (Early Retirement) - LGPS,Cumbria County Council,"5,458.52"
201903,201903101179,R1720,Other Support Function Training,JJ Armstrong (Sole Trader),"2,025.00"
201903,201903101735,R1116,Medical Consultants,Dr Gareth Vincenti,700.00
201903,201903101845,R1126,GP Records,Edinburgh Rheumatology Practice Limited,"3,250.00"
201903,201903102149,R1136,Blood Screening,Kays Medical Limited,"1,454.89"
201903,201903102230,R1110,Force Doctor Fees,Redacted: Personal Information,575.00
201903,201903102659,R0500,Agency Staff,Comensura Ltd,616.56
201903,201903102661,R0500,Agency Staff,Comensura Ltd,"3,397.24"
201903,201903102663,R0500,Agency Staff,Comensura Ltd,"1,800.04"
201903,201903102665,R0500,Agency Staff,Comensura Ltd,565.34
201903,201903102668,R0500,Agency Staff,Comensura Ltd,706.47
201903,201903102670,R0500,Agency Staff,Comensura Ltd,"5,805.66"
201903,201903102676,R0500,Agency Staff,Comensura Ltd,"2,250.05"
201903,201903102678,R1110,Force Doctor Fees,Comensura Ltd,"1,356.43"
201903,201903102681,R0500,Agency Staff,Comensura Ltd,"2,343.27"
201903,201903102684,R0500,Agency Staff,Comensura Ltd,706.47
201903,201903102686,R0500,Agency Staff,Comensura Ltd,"2,866.27"
201903,201903102692,R0500,Agency Staff,Comensura Ltd,"2,250.05"
201903,201903102716,R1116,Medical Consultants,Gel Limited T/A Healthwork,"2,500.00"
201903,201903102967,R1045,External Advertising (Recruitment),Newsquest Media Group,"2,083.33"
201903,201903105258,R1120,Ergonomist,Green Ends Limited,"2,520.00"
201903,201903105261,R1120,Ergonomist,Green Ends Limited,"2,520.00"
201903,201903106024,R1720,Other Support Function Training,Uk Mediation Ltd,"6,664.00"
201903,201903106450,R1136,Blood Screening,Kays Medical Limited,"1,454.89"
201903,201903106533,R1110,Force Doctor Fees,Redacted: Personal Information,575.00
201903,201903106926,R0500,Agency Staff,Comensura Ltd,873.45
201903,201903106928,R0500,Agency Staff,Comensura Ltd,"2,923.85"
201903,201903106934,R0500,Agency Staff,Comensura Ltd,"2,250.05"
201903,201903106936,R1110,Force Doctor Fees,Comensura Ltd,"1,355.68"
201903,201903106939,R0500,Agency Staff,Comensura Ltd,881.45
201903,201903106941,R0500,Agency Staff,Comensura Ltd,"3,037.61"
201903,201903106945,R0500,Agency Staff,Comensura Ltd,"2,250.05"
201903,201903106948,R0500,Agency Staff,Comensura Ltd,873.46
201903,201903106950,R0500,Agency Staff,Comensura Ltd,"3,283.12"
201903,201903106954,R0500,Agency Staff,Comensura Ltd,612.64
201903,201903106957,R0500,Agency Staff,Comensura Ltd,873.46
201903,201903106959,R0500,Agency Staff,Comensura Ltd,"14,640.84"
201903,201903106965,R0500,Agency Staff,Comensura Ltd,"4,500.10"
201903,201903106968,R0500,Agency Staff,Comensura Ltd,873.46
201903,201903106970,R0500,Agency Staff,Comensura Ltd,"4,069.24"
201903,201903106972,R0500,Agency Staff,Comensura Ltd,631.81
201903,201903106974,R0500,Agency Staff,Comensura Ltd,"2,250.05"
201903,201903106976,R1110,Force Doctor Fees,Comensura Ltd,"1,361.28"
201903,201903107243,R1045,External Advertising (Recruitment),Newsquest Media Group,"2,083.33"
201903,201903107427,R1132,Immunisations & Vaccinations,Library House Surgery,"1,250.00"
201903,201903108099,R1138,Psychological Screening,NTA Psychological Screening Ltd,"1,360.00"
201903,201903108238,R1070,External Assessment Centres,College of Policing (NPIA),"18,635.22"
201903,201903109399,R1300,Redundancy Payments,Cumbria County Council,"4,962.37"
201903,201903109402,R1300,Redundancy Payments,Cumbria County Council,"32,407.54"
201903,201903109405,R1340,Added Years Qtrly - LGPS,Cumbria County Council,"15,970.97"
201903,201903109542,R1120,Ergonomist,Green Ends Limited,"2,520.00"
201903,201903109545,R1120,Ergonomist,Green Ends Limited,"2,520.00"
201903,201903109548,R1120,Ergonomist,Green Ends Limited,"2,520.00"
201903,201903109551,R1120,Ergonomist,Green Ends Limited,"2,520.00"
201903,201903110745,R1116,Medical Consultants,Business Health,"2,600.00"
201903,201903111222,R0500,Agency Staff,Comensura Ltd,873.46
201903,201903111226,R0500,Agency Staff,Comensura Ltd,"4,631.08"
201903,201903111230,R0500,Agency Staff,Comensura Ltd,612.64
201903,201903111232,R0500,Agency Staff,Comensura Ltd,"2,250.05"
201903,201903111234,R1110,Force Doctor Fees,Comensura Ltd,"1,364.03"
201903,201903111237,R0500,Agency Staff,Comensura Ltd,706.48
201903,201903111239,R0500,Agency Staff,Comensura Ltd,"1,795.30"
201903,201903111241,R0500,Agency Staff,Comensura Ltd,"3,012.06"
201903,201903111247,R1110,Force Doctor Fees,Comensura Ltd,"1,364.03"
201903,201903111250,R0500,Agency Staff,Comensura Ltd,616.55
201903,201903111252,R0500,Agency Staff,Comensura Ltd,"1,818.30"
201903,201903111254,R0500,Agency Staff,Comensura Ltd,"3,229.46"
201903,201903111260,R0500,Agency Staff,Comensura Ltd,"2,250.05"
201903,201903111262,R1110,Force Doctor Fees,Comensura Ltd,"1,362.78"
201903,201903111265,R0500,Agency Staff,Comensura Ltd,"1,818.30"
201903,201903111267,R0500,Agency Staff,Comensura Ltd,"2,983.83"
201903,201903111271,R0500,Agency Staff,Comensura Ltd,"2,250.05"
201903,201903104084,R2600,Rent,Reed Rains,750.00
201903,201903108399,R2600,Rent,Reed Rains,750.00
201903,201903112652,R2661,Council Tax,Warrington Borough Council,"1,760.12"
201903,201903103931,R3660,Redacted: The information is confidential or would attract an exemption under the Freedom of Information Act ,Redacted: The information is confidential or would attract an exemption under the Freedom of Information Act ,"1,980.00"
201903,201903112519,R3660,Redacted: The information is confidential or would attract an exemption under the Freedom of Information Act ,Redacted: The information is confidential or would attract an exemption under the Freedom of Information Act ,"2,024.50"
201903,201903112534,R3660,Redacted: The information is confidential or would attract an exemption under the Freedom of Information Act ,Redacted: The information is confidential or would attract an exemption under the Freedom of Information Act ,"1,980.00"
201903,201903100001,R5015,Redacted: The information is confidential or would attract an exemption under the Freedom of Information Act ,Redacted: The information is confidential or would attract an exemption under the Freedom of Information Act ,"3,456.03"
201903,201903100004,R5015,Redacted: The information is confidential or would attract an exemption under the Freedom of Information Act ,Redacted: The information is confidential or would attract an exemption under the Freedom of Information Act ,"4,543.97"
201903,201903100106,C5310,Redacted: The information is confidential or would attract an exemption under the Freedom of Information Act ,Redacted: The information is confidential or would attract an exemption under the Freedom of Information Act ,"2,147.54"
201903,201903100123,R7280,Redacted: The information is confidential or would attract an exemption under the Freedom of Information Act ,Redacted: The information is confidential or would attract an exemption under the Freedom of Information Act ,"6,391.00"
201903,201903100373,R5325,Redacted: The information is confidential or would attract an exemption under the Freedom of Information Act ,Redacted: The information is confidential or would attract an exemption under the Freedom of Information Act ,"3,162.24"
201903,201903101732,R5325,Redacted: The information is confidential or would attract an exemption under the Freedom of Information Act ,Redacted: The information is confidential or would attract an exemption under the Freedom of Information Act ,"32,585.74"
201903,201903102007,C5310,Redacted: The information is confidential or would attract an exemption under the Freedom of Information Act ,Redacted: The information is confidential or would attract an exemption under the Freedom of Information Act ,"3,950.00"
201903,201903102622,R1710,Redacted: The information is confidential or would attract an exemption under the Freedom of Information Act ,Redacted: The information is confidential or would attract an exemption under the Freedom of Information Act ,"7,930.00"
201903,201903102705,C5310,Redacted: The information is confidential or would attract an exemption under the Freedom of Information Act ,Redacted: The information is confidential or would attract an exemption under the Freedom of Information Act ,"2,750.00"
201903,201903102748,C5110,Redacted: The information is confidential or would attract an exemption under the Freedom of Information Act ,Redacted: The information is confidential or would attract an exemption under the Freedom of Information Act ,"13,144.35"
201903,201903102751,R5120,Redacted: The information is confidential or would attract an exemption under the Freedom of Information Act ,Redacted: The information is confidential or would attract an exemption under the Freedom of Information Act ,"11,876.21"
201903,201903102763,R5120,Redacted: The information is confidential or would attract an exemption under the Freedom of Information Act ,Redacted: The information is confidential or would attract an exemption under the Freedom of Information Act ,"8,699.29"
201903,201903102766,C5310,Redacted: The information is confidential or would attract an exemption under the Freedom of Information Act ,Redacted: The information is confidential or would attract an exemption under the Freedom of Information Act ,"2,010.00"
201903,201903102822,R5010,Redacted: The information is confidential or would attract an exemption under the Freedom of Information Act ,Redacted: The information is confidential or would attract an exemption under the Freedom of Information Act ,"2,614.53"
201903,201903103020,R5010,Redacted: The information is confidential or would attract an exemption under the Freedom of Information Act ,Redacted: The information is confidential or would attract an exemption under the Freedom of Information Act ,"16,518.38"
201903,201903103792,C6755,Redacted: The information is confidential or would attract an exemption under the Freedom of Information Act ,Redacted: The information is confidential or would attract an exemption under the Freedom of Information Act ,"5,500.00"
201903,201903103825,R5215,Redacted: The information is confidential or would attract an exemption under the Freedom of Information Act ,Redacted: The information is confidential or would attract an exemption under the Freedom of Information Act ,"75,626.78"
201903,201903103937,R5210,Redacted: The information is confidential or would attract an exemption under the Freedom of Information Act ,Redacted: The information is confidential or would attract an exemption under the Freedom of Information Act ,"1,750.00"
201903,201903104285,R5345,Redacted: The information is confidential or would attract an exemption under the Freedom of Information Act ,Redacted: The information is confidential or would attract an exemption under the Freedom of Information Act ,"5,705.85"
201903,201903104293,R1720,Redacted: The information is confidential or would attract an exemption under the Freedom of Information Act ,Redacted: The information is confidential or would attract an exemption under the Freedom of Information Act ,"1,585.00"
201903,201903104325,R5015,Redacted: The information is confidential or would attract an exemption under the Freedom of Information Act ,Redacted: The information is confidential or would attract an exemption under the Freedom of Information Act ,"4,603.37"
201903,201903104328,R5015,Redacted: The information is confidential or would attract an exemption under the Freedom of Information Act ,Redacted: The information is confidential or would attract an exemption under the Freedom of Information Act ,"3,438.81"
201903,201903104331,R5325,Redacted: The information is confidential or would attract an exemption under the Freedom of Information Act ,Redacted: The information is confidential or would attract an exemption under the Freedom of Information Act ,"23,385.00"
201903,201903104386,R5315,Redacted: The information is confidential or would attract an exemption under the Freedom of Information Act ,Redacted: The information is confidential or would attract an exemption under the Freedom of Information Act ,"30,173.02"
201903,201903104392,R7280,Redacted: The information is confidential or would attract an exemption under the Freedom of Information Act ,Redacted: The information is confidential or would attract an exemption under the Freedom of Information Act ,"59,291.43"
201903,201903104508,R5340,Redacted: The information is confidential or would attract an exemption under the Freedom of Information Act ,Redacted: The information is confidential or would attract an exemption under the Freedom of Information Act ,562.80
201903,201903104593,R5325,Redacted: The information is confidential or would attract an exemption under the Freedom of Information Act ,Redacted: The information is confidential or would attract an exemption under the Freedom of Information Act ,689.00
201903,201903106039,C5320,Redacted: The information is confidential or would attract an exemption under the Freedom of Information Act ,Redacted: The information is confidential or would attract an exemption under the Freedom of Information Act ,"1,700.00"
201903,201903106042,C5320,Redacted: The information is confidential or would attract an exemption under the Freedom of Information Act ,Redacted: The information is confidential or would attract an exemption under the Freedom of Information Act ,"2,100.00"
201903,201903106045,R5325,Redacted: The information is confidential or would attract an exemption under the Freedom of Information Act ,Redacted: The information is confidential or would attract an exemption under the Freedom of Information Act ,"17,047.03"
201903,201903106982,C5310,Redacted: The information is confidential or would attract an exemption under the Freedom of Information Act ,Redacted: The information is confidential or would attract an exemption under the Freedom of Information Act ,"2,956.55"
201903,201903106999,C5110,Redacted: The information is confidential or would attract an exemption under the Freedom of Information Act ,Redacted: The information is confidential or would attract an exemption under the Freedom of Information Act ,"114,532.74"
201903,201903107001,R5115,Redacted: The information is confidential or would attract an exemption under the Freedom of Information Act ,Redacted: The information is confidential or would attract an exemption under the Freedom of Information Act ,"75,240.25"
201903,201903107004,C5120,Redacted: The information is confidential or would attract an exemption under the Freedom of Information Act ,Redacted: The information is confidential or would attract an exemption under the Freedom of Information Act ,"4,325.00"
201903,201903107006,R5120,Redacted: The information is confidential or would attract an exemption under the Freedom of Information Act ,Redacted: The information is confidential or would attract an exemption under the Freedom of Information Act ,"5,877.01"
201903,201903107015,R5120,Redacted: The information is confidential or would attract an exemption under the Freedom of Information Act ,Redacted: The information is confidential or would attract an exemption under the Freedom of Information Act ,"11,876.21"
201903,201903107021,R5340,Redacted: The information is confidential or would attract an exemption under the Freedom of Information Act ,Redacted: The information is confidential or would attract an exemption under the Freedom of Information Act ,728.75
201903,201903107045,R5315,Redacted: The information is confidential or would attract an exemption under the Freedom of Information Act ,Redacted: The information is confidential or would attract an exemption under the Freedom of Information Act ,655.00
201903,201903107077,R5010,Redacted: The information is confidential or would attract an exemption under the Freedom of Information Act ,Redacted: The information is confidential or would attract an exemption under the Freedom of Information Act ,"2,810.06"
201903,201903107270,R5215,Redacted: The information is confidential or would attract an exemption under the Freedom of Information Act ,Redacted: The information is confidential or would attract an exemption under the Freedom of Information Act ,"1,993.90"
201903,201903107282,R5010,Redacted: The information is confidential or would attract an exemption under the Freedom of Information Act ,Redacted: The information is confidential or would attract an exemption under the Freedom of Information Act ,-779.47
201903,201903107306,R5120,Redacted: The information is confidential or would attract an exemption under the Freedom of Information Act ,Redacted: The information is confidential or would attract an exemption under the Freedom of Information Act ,"1,776.00"
201903,201903107309,R5120,Redacted: The information is confidential or would attract an exemption under the Freedom of Information Act ,Redacted: The information is confidential or would attract an exemption under the Freedom of Information Act ,"1,776.00"
201903,201903108102,R5210,Redacted: The information is confidential or would attract an exemption under the Freedom of Information Act ,Redacted: The information is confidential or would attract an exemption under the Freedom of Information Act ,860.00
201903,201903108160,R6755,Redacted: The information is confidential or would attract an exemption under the Freedom of Information Act ,Redacted: The information is confidential or would attract an exemption under the Freedom of Information Act ,850.00
201903,201903108212,R5215,Redacted: The information is confidential or would attract an exemption under the Freedom of Information Act ,Redacted: The information is confidential or would attract an exemption under the Freedom of Information Act ,"74,815.78"
201903,201903108314,R5210,Redacted: The information is confidential or would attract an exemption under the Freedom of Information Act ,Redacted: The information is confidential or would attract an exemption under the Freedom of Information Act ,"8,750.00"
201903,201903108591,R5015,Redacted: The information is confidential or would attract an exemption under the Freedom of Information Act ,Redacted: The information is confidential or would attract an exemption under the Freedom of Information Act ,"3,439.32"
201903,201903108594,R5015,Redacted: The information is confidential or would attract an exemption under the Freedom of Information Act ,Redacted: The information is confidential or would attract an exemption under the Freedom of Information Act ,"4,603.47"
201903,201903108654,C5315,Redacted: The information is confidential or would attract an exemption under the Freedom of Information Act ,Redacted: The information is confidential or would attract an exemption under the Freedom of Information Act ,"30,111.70"
201903,201903108657,C5310,Redacted: The information is confidential or would attract an exemption under the Freedom of Information Act ,Redacted: The information is confidential or would attract an exemption under the Freedom of Information Act ,"1,399.20"
201903,201903108660,C5310,Redacted: The information is confidential or would attract an exemption under the Freedom of Information Act ,Redacted: The information is confidential or would attract an exemption under the Freedom of Information Act ,"25,314.45"
201903,201903108663,R7280,Redacted: The information is confidential or would attract an exemption under the Freedom of Information Act ,Redacted: The information is confidential or would attract an exemption under the Freedom of Information Act ,"6,391.00"
201903,201903108727,R5325,Redacted: The information is confidential or would attract an exemption under the Freedom of Information Act ,Redacted: The information is confidential or would attract an exemption under the Freedom of Information Act ,"17,140.00"
201903,201903110434,R5325,Redacted: The information is confidential or would attract an exemption under the Freedom of Information Act ,Redacted: The information is confidential or would attract an exemption under the Freedom of Information Act ,"62,500.00"
201903,201903110540,R5325,Redacted: The information is confidential or would attract an exemption under the Freedom of Information Act ,Redacted: The information is confidential or would attract an exemption under the Freedom of Information Act ,"12,921.18"
201903,201903110782,R5325,Redacted: The information is confidential or would attract an exemption under the Freedom of Information Act ,Redacted: The information is confidential or would attract an exemption under the Freedom of Information Act ,"17,735.00"
201903,201903110785,R5325,Redacted: The information is confidential or would attract an exemption under the Freedom of Information Act ,Redacted: The information is confidential or would attract an exemption under the Freedom of Information Act ,"12,123.00"
201903,201903110837,R5325,Redacted: The information is confidential or would attract an exemption under the Freedom of Information Act ,Redacted: The information is confidential or would attract an exemption under the Freedom of Information Act ,"10,000.00"
201903,201903111052,C5310,Redacted: The information is confidential or would attract an exemption under the Freedom of Information Act ,Redacted: The information is confidential or would attract an exemption under the Freedom of Information Act ,"4,180.00"
201903,201903111150,R5315,Redacted: The information is confidential or would attract an exemption under the Freedom of Information Act ,Redacted: The information is confidential or would attract an exemption under the Freedom of Information Act ,"1,994.21"
201903,201903111201,R1710,Redacted: The information is confidential or would attract an exemption under the Freedom of Information Act ,Redacted: The information is confidential or would attract an exemption under the Freedom of Information Act ,"2,013.58"
201903,201903111279,C5325,Redacted: The information is confidential or would attract an exemption under the Freedom of Information Act ,Redacted: The information is confidential or would attract an exemption under the Freedom of Information Act ,"1,650.00"
201903,201903111282,C5310,Redacted: The information is confidential or would attract an exemption under the Freedom of Information Act ,Redacted: The information is confidential or would attract an exemption under the Freedom of Information Act ,"13,200.00"
201903,201903111316,R5120,Redacted: The information is confidential or would attract an exemption under the Freedom of Information Act ,Redacted: The information is confidential or would attract an exemption under the Freedom of Information Act ,"28,238.97"
201903,201903111319,R5120,Redacted: The information is confidential or would attract an exemption under the Freedom of Information Act ,Redacted: The information is confidential or would attract an exemption under the Freedom of Information Act ,"11,876.21"
201903,201903111380,R5325,Redacted: The information is confidential or would attract an exemption under the Freedom of Information Act ,Redacted: The information is confidential or would attract an exemption under the Freedom of Information Act ,"1,595.00"
201903,201903111430,R6755,Redacted: The information is confidential or would attract an exemption under the Freedom of Information Act ,Redacted: The information is confidential or would attract an exemption under the Freedom of Information Act ,"4,590.00"
201903,201903111552,R5120,Redacted: The information is confidential or would attract an exemption under the Freedom of Information Act ,Redacted: The information is confidential or would attract an exemption under the Freedom of Information Act ,"1,776.00"
201903,201903111623,R5325,Redacted: The information is confidential or would attract an exemption under the Freedom of Information Act ,Redacted: The information is confidential or would attract an exemption under the Freedom of Information Act ,"2,471.40"
201903,201903112365,R5325,Redacted: The information is confidential or would attract an exemption under the Freedom of Information Act ,Redacted: The information is confidential or would attract an exemption under the Freedom of Information Act ,"1,012.96"
201903,201903112438,C5320,Redacted: The information is confidential or would attract an exemption under the Freedom of Information Act ,Redacted: The information is confidential or would attract an exemption under the Freedom of Information Act ,"17,288.20"
201903,201903112440,C5325,Redacted: The information is confidential or would attract an exemption under the Freedom of Information Act ,Redacted: The information is confidential or would attract an exemption under the Freedom of Information Act ,"1,600.00"
201903,201903112474,C5320,Redacted: The information is confidential or would attract an exemption under the Freedom of Information Act ,Redacted: The information is confidential or would attract an exemption under the Freedom of Information Act ,"46,865.00"
201903,201903112476,R5120,Redacted: The information is confidential or would attract an exemption under the Freedom of Information Act ,Redacted: The information is confidential or would attract an exemption under the Freedom of Information Act ,"47,500.00"
201903,201903112479,R5215,Redacted: The information is confidential or would attract an exemption under the Freedom of Information Act ,Redacted: The information is confidential or would attract an exemption under the Freedom of Information Act ,"75,049.34"
201903,201903112802,R5325,Redacted: The information is confidential or would attract an exemption under the Freedom of Information Act ,Redacted: The information is confidential or would attract an exemption under the Freedom of Information Act ,"9,650.00"
201903,201903112805,R5310,Redacted: The information is confidential or would attract an exemption under the Freedom of Information Act ,Redacted: The information is confidential or would attract an exemption under the Freedom of Information Act ,"3,441.10"
201903,201903112820,R5325,Redacted: The information is confidential or would attract an exemption under the Freedom of Information Act ,Redacted: The information is confidential or would attract an exemption under the Freedom of Information Act ,"5,820.00"
201903,201903112828,R5325,Redacted: The information is confidential or would attract an exemption under the Freedom of Information Act ,Redacted: The information is confidential or would attract an exemption under the Freedom of Information Act ,"142,143.62"
201903,201903100010,R5600,Redacted: The information is confidential or would attract an exemption under the Freedom of Information Act ,Redacted: The information is confidential or would attract an exemption under the Freedom of Information Act ,"1,308.11"
201903,201903100012,R5600,Redacted: The information is confidential or would attract an exemption under the Freedom of Information Act ,Redacted: The information is confidential or would attract an exemption under the Freedom of Information Act ,"1,433.31"
201903,201903100014,R5600,Redacted: The information is confidential or would attract an exemption under the Freedom of Information Act ,Redacted: The information is confidential or would attract an exemption under the Freedom of Information Act ,"1,450.23"
201903,201903100733,R5630,Redacted: The information is confidential or would attract an exemption under the Freedom of Information Act ,Redacted: The information is confidential or would attract an exemption under the Freedom of Information Act ,"2,743.02"
201903,201903100739,R5630,Redacted: The information is confidential or would attract an exemption under the Freedom of Information Act ,Redacted: The information is confidential or would attract an exemption under the Freedom of Information Act ,"3,504.97"
201903,201903100807,R4090,Redacted: The information is confidential or would attract an exemption under the Freedom of Information Act ,Redacted: The information is confidential or would attract an exemption under the Freedom of Information Act ,861.66
201903,201903100810,R4090,Redacted: The information is confidential or would attract an exemption under the Freedom of Information Act ,Redacted: The information is confidential or would attract an exemption under the Freedom of Information Act ,576.78
201903,201903100816,R4090,Redacted: The information is confidential or would attract an exemption under the Freedom of Information Act ,Redacted: The information is confidential or would attract an exemption under the Freedom of Information Act ,571.71
201903,201903100959,R6870,Redacted: The information is confidential or would attract an exemption under the Freedom of Information Act ,Redacted: The information is confidential or would attract an exemption under the Freedom of Information Act ,560.00
201903,201903101412,R3745,Redacted: The information is confidential or would attract an exemption under the Freedom of Information Act ,Redacted: The information is confidential or would attract an exemption under the Freedom of Information Act ,580.10
201903,201903101418,R3745,Redacted: The information is confidential or would attract an exemption under the Freedom of Information Act ,Redacted: The information is confidential or would attract an exemption under the Freedom of Information Act ,515.20
201903,201903101487,R3745,Redacted: The information is confidential or would attract an exemption under the Freedom of Information Act ,Redacted: The information is confidential or would attract an exemption under the Freedom of Information Act ,531.40
201903,201903101516,R6850,Redacted: The information is confidential or would attract an exemption under the Freedom of Information Act ,Redacted: The information is confidential or would attract an exemption under the Freedom of Information Act ,"1,213.17"
201903,201903101518,R6850,Redacted: The information is confidential or would attract an exemption under the Freedom of Information Act ,Redacted: The information is confidential or would attract an exemption under the Freedom of Information Act ,600.00
201903,201903101561,R6850,Redacted: The information is confidential or would attract an exemption under the Freedom of Information Act ,Redacted: The information is confidential or would attract an exemption under the Freedom of Information Act ,628.98
201903,201903101567,R6850,Redacted: The information is confidential or would attract an exemption under the Freedom of Information Act ,Redacted: The information is confidential or would attract an exemption under the Freedom of Information Act ,"3,238.16"
201903,201903101571,R6850,Redacted: The information is confidential or would attract an exemption under the Freedom of Information Act ,Redacted: The information is confidential or would attract an exemption under the Freedom of Information Act ,700.00
201903,201903101579,R6850,Redacted: The information is confidential or would attract an exemption under the Freedom of Information Act ,Redacted: The information is confidential or would attract an exemption under the Freedom of Information Act ,"1,995.60"
201903,201903101620,R6840,Redacted: The information is confidential or would attract an exemption under the Freedom of Information Act ,Redacted: The information is confidential or would attract an exemption under the Freedom of Information Act ,550.42
201903,201903101634,R6850,Redacted: The information is confidential or would attract an exemption under the Freedom of Information Act ,Redacted: The information is confidential or would attract an exemption under the Freedom of Information Act ,"5,720.00"
201903,201903101664,R3605,Redacted: The information is confidential or would attract an exemption under the Freedom of Information Act ,Redacted: The information is confidential or would attract an exemption under the Freedom of Information Act ,674.71
201903,201903101696,R3745,Redacted: The information is confidential or would attract an exemption under the Freedom of Information Act ,Redacted: The information is confidential or would attract an exemption under the Freedom of Information Act ,559.10
201903,201903102745,R6850,Redacted: The information is confidential or would attract an exemption under the Freedom of Information Act ,Redacted: The information is confidential or would attract an exemption under the Freedom of Information Act ,741.00
201903,201903103837,R6840,Redacted: The information is confidential or would attract an exemption under the Freedom of Information Act ,Redacted: The information is confidential or would attract an exemption under the Freedom of Information Act ,"1,305.00"
201903,201903104346,R5600,Redacted: The information is confidential or would attract an exemption under the Freedom of Information Act ,Redacted: The information is confidential or would attract an exemption under the Freedom of Information Act ,"1,515.68"
201903,201903104347,R5600,Redacted: The information is confidential or would attract an exemption under the Freedom of Information Act ,Redacted: The information is confidential or would attract an exemption under the Freedom of Information Act ,"1,231.81"
201903,201903105116,R5630,Redacted: The information is confidential or would attract an exemption under the Freedom of Information Act ,Redacted: The information is confidential or would attract an exemption under the Freedom of Information Act ,"3,047.80"
201903,201903105197,R4090,Redacted: The information is confidential or would attract an exemption under the Freedom of Information Act ,Redacted: The information is confidential or would attract an exemption under the Freedom of Information Act ,551.64
201903,201903105200,R4090,Redacted: The information is confidential or would attract an exemption under the Freedom of Information Act ,Redacted: The information is confidential or would attract an exemption under the Freedom of Information Act ,610.89
201903,201903105203,R4090,Redacted: The information is confidential or would attract an exemption under the Freedom of Information Act ,Redacted: The information is confidential or would attract an exemption under the Freedom of Information Act ,916.92
201903,201903105322,R6870,Redacted: Disclosure of Information would breach the Data Protection Act.,Redacted: Disclosure of Information would breach the Data Protection Act.,560.00
201903,201903105781,R6840,Redacted: Disclosure of Information would breach the Data Protection Act.,Redacted: Disclosure of Information would breach the Data Protection Act.,770.91
201903,201903105799,R6850,Redacted: Disclosure of Information would breach the Data Protection Act.,Redacted: Disclosure of Information would breach the Data Protection Act.,"1,740.00"
201903,201903105820,R6850,Redacted: Disclosure of Information would breach the Data Protection Act.,Redacted: Disclosure of Information would breach the Data Protection Act.,592.00
201903,201903105911,R6850,Redacted: Disclosure of Information would breach the Data Protection Act.,Redacted: Disclosure of Information would breach the Data Protection Act.,"3,706.00"
201903,201903105915,R6850,Redacted: Disclosure of Information would breach the Data Protection Act.,Redacted: Disclosure of Information would breach the Data Protection Act.,"1,668.00"
201903,201903105917,R6850,Redacted: Disclosure of Information would breach the Data Protection Act.,Redacted: Disclosure of Information would breach the Data Protection Act.,"1,738.00"
201903,201903105964,R6850,Redacted: Disclosure of Information would breach the Data Protection Act.,Redacted: Disclosure of Information would breach the Data Protection Act.,"2,127.49"
201903,201903105970,R6850,Redacted: Disclosure of Information would breach the Data Protection Act.,Redacted: Disclosure of Information would breach the Data Protection Act.,"4,050.00"
201903,201903106687,R3785,Redacted: Disclosure of Information would breach the Data Protection Act.,Redacted: Disclosure of Information would breach the Data Protection Act.,600.00
201903,201903107759,R3600,Redacted: Disclosure of Information would breach the Data Protection Act.,Redacted: Disclosure of Information would breach the Data Protection Act.,"1,051.32"
201903,201903108606,R5600,Redacted: Disclosure of Information would breach the Data Protection Act.,Redacted: Disclosure of Information would breach the Data Protection Act.,"4,055.97"
201903,201903109396,R5630,Redacted: Disclosure of Information would breach the Data Protection Act.,Redacted: Disclosure of Information would breach the Data Protection Act.,"3,200.19"
201903,201903109449,R4090,Redacted: Disclosure of Information would breach the Data Protection Act.,Redacted: Disclosure of Information would breach the Data Protection Act.,519.48
201903,201903109452,R4090,Redacted: Disclosure of Information would breach the Data Protection Act.,Redacted: Disclosure of Information would breach the Data Protection Act.,613.59
201903,201903109455,R4090,Redacted: Disclosure of Information would breach the Data Protection Act.,Redacted: Disclosure of Information would breach the Data Protection Act.,894.30
201903,201903110039,R3600,Vehicle Hire - Short term,Capita Travel and Events,950.01
201903,201903110043,R3605,Vehicle Hire - Training,Capita Travel and Events,600.00
201903,201903110099,R6850,Hotel Accommodation - Training,Capita Travel and Events,"2,158.34"
201903,201903110101,R6850,Hotel Accommodation - Training,Capita Travel and Events,750.00
201903,201903110105,R6850,Hotel Accommodation - Training,Capita Travel and Events,"1,300.00"
201903,201903110111,R6850,Hotel Accommodation - Training,Capita Travel and Events,"2,690.67"
201903,201903110151,R6840,Hotel Accommodation,Capita Travel and Events,542.31
201903,201903110163,R6840,Hotel Accommodation,Capita Travel and Events,510.90
201903,201903110173,R6850,Hotel Accommodation - Training,Capita Travel and Events,"1,180.00"
201903,201903110196,R3745,Travel - Public Transport,Capita Travel and Events,573.85
201903,201903110268,R6840,Hotel Accommodation,Capita Travel and Events,"2,800.63"
201903,201903110282,R6850,Hotel Accommodation - Training,Capita Travel and Events,"1,746.00"
201903,201903110286,R6850,Hotel Accommodation - Training,Capita Travel and Events,750.00
201903,201903110288,R6850,Hotel Accommodation - Training,Capita Travel and Events,800.00
201903,201903110376,R6840,Hotel Accommodation,Capita Travel and Events,746.29
201903,201903110384,R6850,Hotel Accommodation - Training,Capita Travel and Events,951.00
201903,201903110386,R6850,Hotel Accommodation - Training,Capita Travel and Events,"1,600.00"
201903,201903110394,R6850,Hotel Accommodation - Training,Capita Travel and Events,545.01
201903,201903110396,R6850,Hotel Accommodation - Training,Capita Travel and Events,937.01
201903,201903111960,R3605,Vehicle Hire - Training,Enterprise Rent-a-car UK Limited,792.50
201903,201903112086,R3605,Vehicle Hire - Training,Enterprise Rent-a-car UK Limited,988.50
201903,201903112089,R3605,Vehicle Hire - Training,Enterprise Rent-a-car UK Limited,792.50
201903,201903112408,R5600,Postage Costs,Royal Mail,787.00
201903,201903103734,R5960,Community Initiatives - Activities & Competitions,St John Ambulance,510.00
201903,201903103737,R5960,Community Initiatives - Activities & Competitions,St John Ambulance,700.00
201903,201903104418,R5785,Operational Equipment - Signs & Cones,Signs Direct (Yorkshire) Ltd,"1,765.06"
201903,201903105308,R5790,Operational Equipment - Audio / Video Equipment,PSS Home Entertainment Ltd (Penrith Satellite Systems),600.00
201903,201903105430,R5965,Crime Prevention - Labour Costs / Fitting,Cumbria Superglass Ltd,833.33
201903,201903105558,R5965,Crime Prevention - Labour Costs / Fitting,Solon Security Limited,"1,436.40"
201903,201903109729,R5965,Crime Prevention - Labour Costs / Fitting,Mark Tubman (Locksmith & Joinery),515.00
201903,201903109731,R5965,Crime Prevention - Labour Costs / Fitting,Mark Tubman (Locksmith & Joinery),"1,500.00"
201903,201903109736,R5965,Crime Prevention - Labour Costs / Fitting,Mark Tubman (Locksmith & Joinery),705.00
201903,201903109740,R5965,Crime Prevention - Labour Costs / Fitting,Mark Tubman (Locksmith & Joinery),"3,000.00"
201903,201903102158,R1610,Redacted: Disclosure of Information would breach the Data Protection Act.,Redacted: Disclosure of Information would breach the Data Protection Act.,879.10
201903,201903102221,R1800,Further Education,University of Cumbria,535.00
201903,201903103058,R1800,Further Education,UCLAN -University of Central Lancashire (Preston),"3,180.00"
201903,201903103160,R1740,Leadership Training,DB Agencies Ltd,"3,000.00"
201903,201903103810,R1740,Leadership Training,On the Up Consulting,"25,683.00"
201903,201903104099,R1630,Other Operational Training,Enlighten Training & Consultancy Ltd,"6,570.00"
201903,201903105399,R1740,Leadership Training,CENTRE FOR LEADERSHIP PERFORMANCE,"1,000.00"
201903,201903106338,R1610,CID Training,Forensic Solutions Limited,"2,080.85"
201903,201903106414,R1720,Other Support Function Training,Head Light Ltd,"5,000.00"
201903,201903106517,R1800,Further Education,University of Cumbria,535.00
201903,201903106888,R1830,Training Equipment & Materials,Civil Defence Supply Limited,"2,596.00"
201903,201903107009,R1610,Redacted: Disclosure of Information would breach the Data Protection Act.,Redacted: Disclosure of Information would breach the Data Protection Act.,850.00
201903,201903107128,R1740,Leadership Training,Eliesha Training Ltd,"1,450.00"
201903,201903108120,R1720,Other Support Function Training,Skills for Justice (Enterprise) Ltd - SFJ Awards,"1,156.00"
201903,201903108263,R1740,Leadership Training,Thomas International UK Ltd,"3,990.00"
201903,201903108402,R1630,Other Operational Training,Enlighten Training & Consultancy Ltd,"1,575.00"
201903,201903108730,R1610,Redacted: Disclosure of Information would breach the Data Protection Act.,Redacted: Disclosure of Information would breach the Data Protection Act.,"1,000.00"
201903,201903109666,R1740,Leadership Training,CENTRE FOR LEADERSHIP PERFORMANCE,738.70
201903,201903109669,R1740,Leadership Training,CENTRE FOR LEADERSHIP PERFORMANCE,700.00
201903,201903111620,R1630,Other Operational Training,CJL Consultancy (Sole Trader C Lillicrap),800.00
201903,201903112660,R1610,CID Training,The Kingsham Consultancy Ltd,"1,300.00"
201903,201903112687,R1740,Leadership Training,YPO,"2,000.00"
201903,201903100671,R7290,Other Third Party Payments,Carlisle City Council,"14,750.00"
201903,201903100727,R6835,Internal Audit Fee,Cumbria County Council,"18,115.20"
201903,201903100730,R6835,Internal Audit Fee,Cumbria County Council,"18,115.20"
201903,201903100869,R4880,Ex-Gratia Payments,Exgratia Payments,"1,049.00"
201903,201903101008,Z2114,Police Property Act Fund - Transactions Money Out (Total Expenditure),Castletown U10 Girls Football Team,893.20
201903,201903101105,Z2114,Police Property Act Fund - Transactions Money Out (Total Expenditure),Seaton Junior FC,"1,950.48"
201903,201903102129,R7042,Pension Services,Kier Business Services Ltd,"7,609.00"
201903,201903102650,R7380,Settlement of 3rd Party Claims for damage to property / vehicles,Gallagher Bassett International Ltd,"17,564.49"
201903,201903102845,R6824,NatWest Corporate Card Payments,Natwest Corporate Card,"2,230.98"
201903,201903103943,R6710,Subscriptions,CPOSA,768.50
201903,201903103974,R7042,Pension Services,PS Administration Limited T/A XPS Administration,"7,609.00"
201903,201903104010,R7290,Other Third Party Payments,Tellemachus Limited,"18,999.88"
201903,201903104090,R1720,Other Support Function Training,Chartered Institute of Public Finance and Accountancy,"1,682.90"
201903,201903104093,R6710,Subscriptions,Chartered Institute of Public Finance and Accountancy,"1,595.00"
201903,201903104337,R7290,Other Third Party Payments,Police and Crime Commissioner for Hertfordshire,998.00
201903,201903104369,R7290,Other Third Party Payments,Police and Crime Commissioner for West Midlands,"33,074.00"
201903,201903104374,R6710,Subscriptions,SocialSignin Ltd T/A Orlo,"20,000.00"
201903,201903105171,Z2114,Police Property Act Fund - Transactions Money Out (Total Expenditure),Blennerhasset School,"1,500.00"
201903,201903105228,R4880,Ex-Gratia Payments,Exgratia Payments,560.00
201903,201903105243,R4880,Ex-Gratia Payments,Exgratia Payments,874.32
201903,201903105595,R7390,Other Insurance,AON UK Ltd,"-1,123.01"
201903,201903106029,R7290,Other Third Party Payments,Police and Crime Commissioner for Durham Constabulary,"4,000.00"
201903,201903106623,Z2114,Police Property Act Fund - Transactions Money Out (Total Expenditure),Manna House,"2,500.00"
201903,201903106769,Z2114,Police Property Act Fund - Transactions Money Out (Total Expenditure),Furness Catholic Amateur Boxing Club,"2,500.00"
201903,201903107101,R6824,NatWest Corporate Card Payments,Natwest Corporate Card,"2,375.73"
201903,201903108339,R7042,Pension Services,PS Administration Limited T/A XPS Administration,"7,609.00"
201903,201903109305,R7290,Other Third Party Payments,Carlisle City Council,"-14,750.00"
201903,201903109812,R6710,Subscriptions,Lake District Search and Mountain Rescue Association,"12,160.00"
201903,201903109971,R6757,Consultants Fees - Finance,LAVAT Consulting Ltd - t/a PSTAX,"2,065.00"
201903,201903111298,R7290,Other Third Party Payments,Police and Crime Commissioner for Greater Manchester,"4,429.00"
201903,201903111370,R6824,NatWest Corporate Card Payments,Natwest Corporate Card,"2,662.08"
201903,201903111411,R7040,Payroll Services,MHR International UK LTD,"12,500.00"
201903,201903111414,R7040,Payroll Services,MHR International UK LTD,"12,500.00"
201903,201903111417,R7040,Payroll Services,MHR International UK LTD,"12,500.00"
201903,201903111436,R6830,External Audit Fee,Grant Thornton UK LLP,"2,887.00"
201903,201903112552,R7290,Other Third Party Payments,Mayor's Office for Policing and Crime,"15,730.00"
201903,201903112578,R7042,Pension Services,PS Administration Limited T/A XPS Administration,"7,609.00"
201903,201903112581,R7042,Pension Services,PS Administration Limited T/A XPS Administration,"7,609.00"
201903,201903100026,B2302,Inventories/Stocks - General / Admin Equipment - Purchases,Arrow County Supplies,714.80
201903,201903100053,B2302,Inventories/Stocks - General / Admin Equipment - Purchases,Arrow County Supplies,717.84
201903,201903100899,B2312,Inventories/Stocks - Uniforms - Purchases,Earle International,511.65
201903,201903101064,R4400,Books & Publications,Hills Books,"1,019.85"
201903,201903101225,B2302,Inventories/Stocks - General / Admin Equipment - Purchases,Scenesafe Previously (WA Products (UK) Ltd),617.50
201903,201903101319,R4010,Office Stationery,SG World Ltd,594.00
201903,201903101324,R4010,Office Stationery,SG World Ltd,594.00
201903,201903101828,B2312,Inventories/Stocks - Uniforms - Purchases,Endura Ltd,570.00
201903,201903102001,B2312,Inventories/Stocks - Uniforms - Purchases,Yaffy (MWUK Ltd),"3,493.75"
201903,201903102010,R4400,Books & Publications,Ai Training Services Ltd,"1,500.00"
201903,201903102138,B2312,Inventories/Stocks - Uniforms - Purchases,Try & Lilly Ltd,601.74
201903,201903102212,B2312,Inventories/Stocks - Uniforms - Purchases,Bennett Safetywear Ltd,717.00
201903,201903102567,R6750,Consultants Fees - Other,Fred Harvey Associates,825.00
201903,201903102576,R5865,Operational Equipment - Other,Cromwell Tools,563.00
201903,201903102916,B2312,Inventories/Stocks - Uniforms - Purchases,Mehler Vario System GmbH,989.20
201903,201903102917,B2312,Inventories/Stocks - Uniforms - Purchases,Mehler Vario System GmbH,667.30
201903,201903102918,B2312,Inventories/Stocks - Uniforms - Purchases,Mehler Vario System GmbH,712.80
201903,201903102919,B2312,Inventories/Stocks - Uniforms - Purchases,Mehler Vario System GmbH,"2,027.50"
201903,201903102921,B2312,Inventories/Stocks - Uniforms - Purchases,Mehler Vario System GmbH,811.00
201903,201903102922,B2312,Inventories/Stocks - Uniforms - Purchases,Mehler Vario System GmbH,"1,786.70"
201903,201903102923,B2312,Inventories/Stocks - Uniforms - Purchases,Axess International Limited,878.00
201903,201903103004,B2312,Inventories/Stocks - Uniforms - Purchases,C W Headdress Ltd,572.00
201903,201903103719,B2312,Inventories/Stocks - Uniforms - Purchases,Niton Equipment Ltd,"5,640.00"
201903,201903103807,B2312,Inventories/Stocks - Uniforms - Purchases,Ballyclare Ltd,726.20
201903,201903103860,B2312,Inventories/Stocks - Uniforms - Purchases,Hi-tec Europe Ltd,"1,080.00"
201903,201903103940,B2312,Inventories/Stocks - Uniforms - Purchases,Motorola Ltd,"1,510.00"
201903,201903103964,B2312,Inventories/Stocks - Uniforms - Purchases,Price Western Leather Co Ltd,830.70
201903,201903104308,B2312,Inventories/Stocks - Uniforms - Purchases,Michael Lupton Associates Ltd,875.00
201903,201903104351,B2302,Inventories/Stocks - General / Admin Equipment - Purchases,Arrow County Supplies,744.68
201903,201903104363,B2302,Inventories/Stocks - General / Admin Equipment - Purchases,Arrow County Supplies,865.10
201903,201903104567,R4300,Furniture - General,Gresham Office Furniture,635.00
201903,201903105303,R4000,Office Equipment - Purchase,PSS Home Entertainment Ltd (Penrith Satellite Systems),800.00
201903,201903105314,R4000,Office Equipment - Purchase,PSS Home Entertainment Ltd (Penrith Satellite Systems),600.00
201903,201903105564,B2302,Inventories/Stocks - General / Admin Equipment - Purchases,Scenesafe Previously (WA Products (UK) Ltd),"1,043.34"
201903,201903105754,B2312,Inventories/Stocks - Uniforms - Purchases,Derby Unitex Ltd,659.85
201903,201903106118,B2312,Inventories/Stocks - Uniforms - Purchases,Endura Ltd,"1,957.75"
201903,201903106124,B2312,Inventories/Stocks - Uniforms - Purchases,Endura Ltd,"2,559.40"
201903,201903106127,B2312,Inventories/Stocks - Uniforms - Purchases,Endura Ltd,"1,260.60"
201903,201903106263,B2312,Inventories/Stocks - Uniforms - Purchases,Yaffy (MWUK Ltd),"1,863.20"
201903,201903106266,B2312,Inventories/Stocks - Uniforms - Purchases,Yaffy (MWUK Ltd),"2,812.50"
201903,201903106269,B2312,Inventories/Stocks - Uniforms - Purchases,Yaffy (MWUK Ltd),"1,687.50"
201903,201903106272,B2312,Inventories/Stocks - Uniforms - Purchases,Yaffy (MWUK Ltd),"2,558.40"
201903,201903106441,B2302,Inventories/Stocks - General / Admin Equipment - Purchases,Kays Medical Limited,"1,028.00"
201903,201903107202,B2312,Inventories/Stocks - Uniforms - Purchases,Mehler Vario System GmbH,"5,042.40"
201903,201903107203,B2312,Inventories/Stocks - Uniforms - Purchases,Mehler Vario System GmbH,"3,008.60"
201903,201903107204,B2312,Inventories/Stocks - Uniforms - Purchases,Mehler Vario System GmbH,667.40
201903,201903107206,B2312,Inventories/Stocks - Uniforms - Purchases,Mehler Vario System GmbH,"4,242.00"
201903,201903107207,B2312,Inventories/Stocks - Uniforms - Purchases,Mehler Vario System GmbH,"1,123.20"
201903,201903107208,B2312,Inventories/Stocks - Uniforms - Purchases,Mehler Vario System GmbH,712.80
201903,201903107209,B2312,Inventories/Stocks - Uniforms - Purchases,Mehler Vario System GmbH,717.00
201903,201903107210,B2312,Inventories/Stocks - Uniforms - Purchases,Mehler Vario System GmbH,717.00
201903,201903107211,B2312,Inventories/Stocks - Uniforms - Purchases,Mehler Vario System GmbH,"1,434.00"
201903,201903107212,B2312,Inventories/Stocks - Uniforms - Purchases,Mehler Vario System GmbH,"4,002.00"
201903,201903107213,B2312,Inventories/Stocks - Uniforms - Purchases,Mehler Vario System GmbH,"2,146.40"
201903,201903107214,B2312,Inventories/Stocks - Uniforms - Purchases,Mehler Vario System GmbH,717.00
201903,201903107215,B2312,Inventories/Stocks - Uniforms - Purchases,Mehler Vario System GmbH,717.00
201903,201903107216,B2312,Inventories/Stocks - Uniforms - Purchases,Mehler Vario System GmbH,"3,164.80"
201903,201903107218,B2312,Inventories/Stocks - Uniforms - Purchases,Mehler Vario System GmbH,717.00
201903,201903107273,R4010,Office Stationery,PTX,517.40
201903,201903108108,B2312,Inventories/Stocks - Uniforms - Purchases,Niton Equipment Ltd,"5,640.00"
201903,201903108184,R4005,Office Equipment - Maintenance,Digital ID,725.00
201903,201903108190,R4000,Office Equipment - Purchase,Digital ID,"3,472.00"
201903,201903108194,R4010,Office Stationery,Digital ID,"1,487.88"
201903,201903108196,R4020,Office Sundries,Digital ID,525.00
201903,201903108499,B2302,Inventories/Stocks - General / Admin Equipment - Purchases,Banner Group Limited (Previously Supplies Team Limited),"1,228.80"
201903,201903108573,B2312,Inventories/Stocks - Uniforms - Purchases,Michael Lupton Associates Ltd,942.20
201903,201903108854,R4300,Furniture - General,Gresham Office Furniture,"1,527.00"
201903,201903109567,B2312,Inventories/Stocks - Uniforms - Purchases,Earle International,560.00
201903,201903109877,B2302,Inventories/Stocks - General / Admin Equipment - Purchases,Scenesafe Previously (WA Products (UK) Ltd),"1,154.90"
201903,201903109894,B2312,Inventories/Stocks - Uniforms - Purchases,Scenesafe Previously (WA Products (UK) Ltd),977.30
201903,201903110597,B2312,Inventories/Stocks - Uniforms - Purchases,Endura Ltd,892.50
201903,201903110734,B2312,Inventories/Stocks - Uniforms - Purchases,Yaffy (MWUK Ltd),799.50
201903,201903110737,B2312,Inventories/Stocks - Uniforms - Purchases,Yaffy (MWUK Ltd),"2,558.40"
201903,201903110740,B2312,Inventories/Stocks - Uniforms - Purchases,Yaffy (MWUK Ltd),"5,187.95"
201903,201903111055,R4302,Furniture - DSE Specialist Furniture,Centric Office Solutions Limited,"1,410.00"
201903,201903111439,B2312,Inventories/Stocks - Uniforms - Purchases,Deenside Ltd,780.00
201903,201903111445,B2312,Inventories/Stocks - Uniforms - Purchases,Mehler Vario System GmbH,682.60
201903,201903111446,B2312,Inventories/Stocks - Uniforms - Purchases,Mehler Vario System GmbH,"1,156.60"
201903,201903111447,B2312,Inventories/Stocks - Uniforms - Purchases,Mehler Vario System GmbH,"1,441.10"
201903,201903111448,B2312,Inventories/Stocks - Uniforms - Purchases,Mehler Vario System GmbH,"5,655.90"
201903,201903111449,B2312,Inventories/Stocks - Uniforms - Purchases,Mehler Vario System GmbH,630.10
201903,201903111450,B2312,Inventories/Stocks - Uniforms - Purchases,Mehler Vario System GmbH,"1,156.60"
201903,201903111451,B2312,Inventories/Stocks - Uniforms - Purchases,Mehler Vario System GmbH,"3,992.70"
201903,201903111452,B2312,Inventories/Stocks - Uniforms - Purchases,Mehler Vario System GmbH,725.60
201903,201903111454,B2312,Inventories/Stocks - Uniforms - Purchases,Mehler Vario System GmbH,"1,156.60"
201903,201903111455,B2312,Inventories/Stocks - Uniforms - Purchases,Mehler Vario System GmbH,"1,179.80"
201903,201903111456,B2312,Inventories/Stocks - Uniforms - Purchases,Mehler Vario System GmbH,680.20
201903,201903111457,B2312,Inventories/Stocks - Uniforms - Purchases,Mehler Vario System GmbH,"1,023.40"
201903,201903111459,B2312,Inventories/Stocks - Uniforms - Purchases,Mehler Vario System GmbH,845.60
201903,201903111460,B2312,Inventories/Stocks - Uniforms - Purchases,Mehler Vario System GmbH,742.50
201903,201903111461,B2312,Inventories/Stocks - Uniforms - Purchases,Mehler Vario System GmbH,534.60
201903,201903111463,B2312,Inventories/Stocks - Uniforms - Purchases,Mehler Vario System GmbH,"8,404.00"
201903,201903112458,R4020,Office Sundries,Digital ID,"1,872.00"
201903,201903112537,B2312,Inventories/Stocks - Uniforms - Purchases,Motorola Ltd,"3,520.00"
201903,201903112555,B2312,Inventories/Stocks - Uniforms - Purchases,Price Western Leather Co Ltd,830.70
201903,201903101260,R4175,Print Unit - Digital Copier Click Charges,Xerox UK Ltd,"1,432.64"
201903,201903102105,R6750,Consultants Fees - Other,SMSR Ltd,581.00
201903,201903103955,R5350,Web Design & Running Costs,Zengenti Ltd,"5,000.00"
201903,201903104372,R5350,Web Design & Running Costs,SocialSignin Ltd T/A Orlo,"4,250.00"
201903,201903106106,R6730,Non-Staff Advertising,Access Intelligence Media and Communications Limited (Vuelio),"2,500.00"
201903,201903107169,R4155,External Printing,Harlow Printing Ltd,547.50
201903,201903107172,R4155,External Printing,Harlow Printing Ltd,"1,295.00"
201903,201903107175,R4155,External Printing,Harlow Printing Ltd,983.00
201903,201903107189,R4155,External Printing,J S B Print Solutions Ltd,595.00
201903,201903107194,R4155,External Printing,J S B Print Solutions Ltd,680.00
201903,201903108320,R5350,Web Design & Running Costs,Zengenti Ltd,640.00
201903,201903108842,R5350,Web Design & Running Costs,BT Business Direct Ltd,590.08
201903,201903109860,R6730,Non-Staff Advertising,Soopa Doopa Branding Ltd,"7,378.75"
201903,201903111189,R1720,Other Support Function Training,Police and Crime Commissioner for Lincolnshire,"1,925.00"
201903,201903111192,R1720,Other Support Function Training,Police and Crime Commissioner for Lincolnshire,"1,150.00"
201903,201903111535,R5350,Web Design & Running Costs,GETTY IMAGES INTERNATIONAL,"1,160.00"
201903,201903102022,R1150,Gym Equipment - Purchase,Precor,"5,137.00"
201903,201903102296,R2410,Minor Works,FTS Fire & Security Ltd,568.00
201903,201903109029,R2410,Minor Works,S M Flooring Ltd,"4,351.00"
201903,201903109782,R2410,Minor Works,Frederick Potts & Sons Ltd,"2,668.00"
201903,201903109791,R2410,Minor Works,Frederick Potts & Sons Ltd,880.00
201903,201903110754,R1150,Gym Equipment - Purchase,Precor,"3,910.00"
201903,201903110757,R1150,Gym Equipment - Purchase,Precor,"8,861.50"
201903,201903110760,R1150,Gym Equipment - Purchase,Precor,"2,360.00"
201903,201903100032,R2725,Cleaning Materials,Arrow County Supplies,"1,285.80"
201903,201903100050,R2720,Other Cleaning & Domestic Equipment,Arrow County Supplies,572.05
201903,201903100079,R3110,Vehicle Maintenance - Tyres & Tubes,Goodyear Dunlop Tyres UK Limited,"9,015.99"
201903,201903100082,R2263,Planned Servicing Security & Security Equipment Maintenance,ADT Fire & Security,"2,210.50"
201903,201903100126,R3510,Vehicle Fuel,Allstar Business Solutions Ltd,"1,077.27"
201903,201903100139,R7006,North West Ambulance Service - Estates Management Collaboration,Chubb Fire & Security Limited,"2,983.25"
201903,201903100142,R2030,Unplanned Building Services Security & Security Equipment Maintenance,Chubb Fire & Security Limited,809.30
201903,201903100151,R2030,Unplanned Building Services Security & Security Equipment Maintenance,Chubb Fire & Security Limited,590.80
201903,201903100162,R3460,Accident Damage (Below Insurance Threshold),James Alpe Ltd,"1,000.00"
201903,201903100192,R2700,Cleaning Contract,Bulloughs Cleaning Services Ltd,"12,622.00"
201903,201903100194,R2700,Cleaning Contract,Bulloughs Cleaning Services Ltd,"3,610.25"
201903,201903100196,R2700,Cleaning Contract,Bulloughs Cleaning Services Ltd,577.85
201903,201903100200,R2700,Cleaning Contract,Bulloughs Cleaning Services Ltd,"4,937.90"
201903,201903100204,R2700,Cleaning Contract,Bulloughs Cleaning Services Ltd,"2,337.56"
201903,201903100206,R2700,Cleaning Contract,Bulloughs Cleaning Services Ltd,"3,524.91"
201903,201903100208,R2700,Cleaning Contract,Bulloughs Cleaning Services Ltd,"1,444.64"
201903,201903100212,R2700,Cleaning Contract,Bulloughs Cleaning Services Ltd,577.85
201903,201903100224,R2700,Cleaning Contract,Bulloughs Cleaning Services Ltd,"1,444.64"
201903,201903100258,R7006,North West Ambulance Service - Estates Management Collaboration,BID Group Ltd,"1,860.00"
201903,201903100264,R7006,North West Ambulance Service - Estates Management Collaboration,BID Group Ltd,720.00
201903,201903100295,R4540,Canteen - Hot Drink Machines,Rijo 42 Ingredients Ltd,562.94
201903,201903100385,R4520,Canteen - Purchase of Food / Ingredients,PFD (Carlisle) Ltd t/a Pioneer Foodservice,673.23
201903,201903100388,R4520,Canteen - Purchase of Food / Ingredients,PFD (Carlisle) Ltd t/a Pioneer Foodservice,753.20
201903,201903100391,R4520,Canteen - Purchase of Food / Ingredients,PFD (Carlisle) Ltd t/a Pioneer Foodservice,790.59
201903,201903100394,R4520,Canteen - Purchase of Food / Ingredients,PFD (Carlisle) Ltd t/a Pioneer Foodservice,"1,441.75"
201903,201903100397,R4520,Canteen - Purchase of Food / Ingredients,PFD (Carlisle) Ltd t/a Pioneer Foodservice,900.66
201903,201903100400,R4520,Canteen - Purchase of Food / Ingredients,PFD (Carlisle) Ltd t/a Pioneer Foodservice,886.41
201903,201903100403,R4520,Canteen - Purchase of Food / Ingredients,PFD (Carlisle) Ltd t/a Pioneer Foodservice,"1,361.92"
201903,201903100411,R2845,Legal Fees (Property Sale),Hyde Harrington Ltd,"2,500.00"
201903,201903100453,R3460,Accident Damage (Below Insurance Threshold),Thompson Accident Repair Centre,"1,000.00"
201903,201903100456,R3450,Accident Damage (Below Insurance Excess)),Thompson Accident Repair Centre,870.48
201903,201903100462,R2080,Unplanned Building Services External Other,D Brown Building & Joinery Limited,886.00
201903,201903100474,R7006,North West Ambulance Service - Estates Management Collaboration,Unwin Jones Partnership,"1,150.00"
201903,201903100477,R7006,North West Ambulance Service - Estates Management Collaboration,Unwin Jones Partnership,"1,830.00"
201903,201903100480,C2830,Professional Fees,Unwin Jones Partnership,"5,000.00"
201903,201903100499,R2410,Minor Works,Longhorn (Carlisle Glass Ltd),540.08
201903,201903100508,R7006,North West Ambulance Service - Estates Management Collaboration,Dawson Electrical Services Ltd,720.00
201903,201903100511,R2050,Unplanned Building Services Electrics,Dawson Electrical Services Ltd,"1,160.00"
201903,201903100514,R7006,North West Ambulance Service - Estates Management Collaboration,Dawson Electrical Services Ltd,960.00
201903,201903100555,R7006,North West Ambulance Service - Estates Management Collaboration,Cumbria Mechanical Plumbing Ltd,"3,796.00"
201903,201903100599,R2235,Planned Survey Environmental Services/Plumbing,Cumbria Mechanical Plumbing Ltd,"3,268.00"
201903,201903100748,R2460,Grounds Maintenance - Contract,S Nicholson Grounds Maintenance,750.00
201903,201903100784,R7006,North West Ambulance Service - Estates Management Collaboration,Roland Hill (Parsonby) Ltd,"9,414.00"
201903,201903100828,R2610,Estates Leases,Solway Plain Futures Ltd,"1,898.00"
201903,201903100845,R2600,Rent,Cumbrian Adventure Ltd,"1,200.00"
201903,201903100971,R2730,Refuse,Amey PLC - Enterprise Managed Services Ltd,"1,159.60"
201903,201903100990,R2060,Unplanned Building Services Environmental Services/Plumbing,R B Loveridge & Son Ltd,596.04
201903,201903100992,R7006,North West Ambulance Service - Estates Management Collaboration,R B Loveridge & Son Ltd,744.85
201903,201903101077,R2610,Estates Leases,Allerdale Borough Council,512.50
201903,201903101110,R2410,Minor Works,Spencer Ivison,520.00
201903,201903101123,C2245,Planned Survey Alterations & Improvements,Thomas Armstrong (Construction) Ltd,"133,093.32"
201903,201903101131,R2610,Estates Leases,Frederick Potts & Sons Ltd,787.50
201903,201903101143,C2830,Professional Fees,Baker Mallett LLP,827.24
201903,201903101170,R2830,Professional Fees,Tweddell & Slater Limited,"1,027.50"
201903,201903101245,C3900,Vehicle Purchases - Capital,Ford Motor Co Ltd T/A Parts Plus,"17,284.69"
201903,201903101248,C3900,Vehicle Purchases - Capital,Ford Motor Co Ltd T/A Parts Plus,"27,155.01"
201903,201903101251,C3900,Vehicle Purchases - Capital,Ford Motor Co Ltd T/A Parts Plus,"27,155.01"
201903,201903101254,C3900,Vehicle Purchases - Capital,Ford Motor Co Ltd T/A Parts Plus,"27,155.01"
201903,201903101808,R2680,PFI Occupancy Charges,West Cumbria Estates Management Limited,"171,493.63"
201903,201903101820,R2020,Unplanned Building Services HVAC System,West Cumbria Estates Management Limited,609.19
201903,201903101851,R2500,Oil,Scottish Fuels,"4,367.32"
201903,201903101854,R2500,Oil,Scottish Fuels,"1,099.60"
201903,201903101857,R2500,Oil,Scottish Fuels,"1,116.09"
201903,201903101860,R2500,Oil,Scottish Fuels,"3,298.80"
201903,201903101863,R2500,Oil,Scottish Fuels,"3,445.17"
201903,201903101942,R3120,Vehicle Maintenance - Parts Purchase,Arnold Clark Automobiles Ltd,544.32
201903,201903101997,R3120,Vehicle Maintenance - Parts Purchase,Arnold Clark Automobiles Ltd,758.57
201903,201903102016,R2277,Planned Servicing Water Chlorination,Clearwater Technology Limited,555.33
201903,201903102019,R2235,Planned Survey Environmental Services/Plumbing,Clearwater Technology Limited,"2,495.00"
201903,201903102031,R2510,Electricity,British Gas Trading,"6,194.78"
201903,201903102057,R2730,Refuse,Biffa Waste Services Ltd,591.60
201903,201903102287,R2265,Planned Servicing Fire Systems,FTS Fire & Security Ltd,784.00
201903,201903102299,R2410,Minor Works,FTS Fire & Security Ltd,606.00
201903,201903102329,R2230,Planned Survey Electrics,Ian Robinson,"2,350.00"
201903,201903102346,R2230,Planned Survey Electrics,Ian Robinson,"11,822.73"
201903,201903102351,R2050,Unplanned Building Services Electrics,Ian Robinson,959.40
201903,201903102443,R3120,Vehicle Maintenance - Parts Purchase,Guy Perry Ltd,736.00
201903,201903102466,R2610,Estates Leases,Dalton Community Association,"1,100.00"
201903,201903102558,R2505,Gas,Flogas Britain Ltd,715.22
201903,201903102561,R2505,Gas,Flogas Britain Ltd,670.30
201903,201903102628,R3120,Vehicle Maintenance - Parts Purchase,ECCO Safety Group UK Ltd,-850.00
201903,201903102804,R2740,Destruction of Confidential Waste,Shred-it (Europe) Ltd,"1,865.00"
201903,201903102848,R2610,Estates Leases,Ulverston Properties Ltd,780.00
201903,201903102851,R2830,Professional Fees,Police and Crime Commissioner for Northumbria,"1,500.00"
201903,201903102937,R3210,Police Vehicle Recovery & Transport,FMG Support (RRRM) Ltd,"2,181.00"
201903,201903103026,R2510,Electricity,EDF Energy,"16,661.29"
201903,201903103028,R2530,Climate Change Levy,EDF Energy,852.63
201903,201903103031,R2510,Electricity,EDF Energy,"3,230.33"
201903,201903103036,R2510,Electricity,EDF Energy,"5,675.76"
201903,201903103041,R2510,Electricity,EDF Energy,"10,231.81"
201903,201903103043,R2530,Climate Change Levy,EDF Energy,521.17
201903,201903103166,R4517,Catering - Training (Lancashire),Police and Crime Commissioner for Lancashire,553.00
201903,201903103731,R2030,Unplanned Building Services Security & Security Equipment Maintenance,Open View Security Solutions Limited (Garndene Communication Systems Ltd),898.82
201903,201903103795,R2080,Unplanned Building Services External Other,Dorma UK Ltd,930.74
201903,201903103813,R7006,North West Ambulance Service - Estates Management Collaboration,Countrywide Grounds Maintenance Ltd,550.00
201903,201903103816,R7006,North West Ambulance Service - Estates Management Collaboration,Countrywide Grounds Maintenance Ltd,950.00
201903,201903103819,R7006,North West Ambulance Service - Estates Management Collaboration,Countrywide Grounds Maintenance Ltd,641.66
201903,201903103872,R2550,Metered Water,Water Plus Ltd,"7,586.67"
201903,201903103878,R2550,Metered Water,Water Plus Ltd,"-12,781.96"
201903,201903103880,R2550,Metered Water,Water Plus Ltd,616.68
201903,201903103888,R2550,Metered Water,Water Plus Ltd,937.68
201903,201903103898,R2550,Metered Water,Water Plus Ltd,779.00
201903,201903103904,R2565,Sewerage & Environmental Services,Water Plus Ltd,"4,891.17"
201903,201903103908,R2565,Sewerage & Environmental Services,Water Plus Ltd,"-5,954.87"
201903,201903103914,R2565,Sewerage & Environmental Services,Water Plus Ltd,"2,944.24"
201903,201903103916,R2565,Sewerage & Environmental Services,Water Plus Ltd,"2,036.06"
201903,201903103926,R2565,Sewerage & Environmental Services,Water Plus Ltd,520.42
201903,201903104050,R3120,Vehicle Maintenance - Parts Purchase,Castrol (UK) Ltd,558.60
201903,201903104053,R3120,Vehicle Maintenance - Parts Purchase,Castrol (UK) Ltd,699.96
201903,201903104056,R3120,Vehicle Maintenance - Parts Purchase,Lloyd Motors Ltd,577.83
201903,201903104087,R2230,Planned Survey Electrics,Burtonwood Generator & Switchgear Services Limited,678.00
201903,201903104111,R2505,Gas,Corona Energy,"13,818.95"
201903,201903104220,R3510,Vehicle Fuel,Allstar Business Solutions Ltd,749.33
201903,201903104223,R3510,Vehicle Fuel,Allstar Business Solutions Ltd,"1,410.41"
201903,201903104226,R3510,Vehicle Fuel,Allstar Business Solutions Ltd,839.57
201903,201903104229,R3510,Vehicle Fuel,Allstar Business Solutions Ltd,792.86
201903,201903104238,R3510,Vehicle Fuel,Allstar Business Solutions Ltd,"2,155.09"
201903,201903104241,R3510,Vehicle Fuel,Allstar Business Solutions Ltd,"2,425.87"
201903,201903104255,R3510,Vehicle Fuel,Allstar Business Solutions Ltd,"70,248.77"
201903,201903104258,R3510,Vehicle Fuel,Allstar Business Solutions Ltd,"1,536.58"
201903,201903104261,R3510,Vehicle Fuel,Allstar Business Solutions Ltd,590.77
201903,201903104348,R2725,Cleaning Materials,Arrow County Supplies,"1,142.00"
201903,201903104354,R2720,Other Cleaning & Domestic Equipment,Arrow County Supplies,580.25
201903,201903104360,R2720,Other Cleaning & Domestic Equipment,Arrow County Supplies,764.90
201903,201903104377,R3110,Vehicle Maintenance - Tyres & Tubes,Goodyear Dunlop Tyres UK Limited,"8,883.73"
201903,201903104398,R3510,Vehicle Fuel,Allstar Business Solutions Ltd,"1,565.73"
201903,201903104430,R2700,Cleaning Contract,Bulloughs Cleaning Services Ltd,"12,622.00"
201903,201903104432,R2700,Cleaning Contract,Bulloughs Cleaning Services Ltd,"3,610.25"
201903,201903104434,R2700,Cleaning Contract,Bulloughs Cleaning Services Ltd,577.85
201903,201903104438,R2700,Cleaning Contract,Bulloughs Cleaning Services Ltd,"4,937.90"
201903,201903104442,R2700,Cleaning Contract,Bulloughs Cleaning Services Ltd,"2,337.56"
201903,201903104444,R2700,Cleaning Contract,Bulloughs Cleaning Services Ltd,"3,524.91"
201903,201903104446,R2700,Cleaning Contract,Bulloughs Cleaning Services Ltd,"1,444.64"
201903,201903104450,R2700,Cleaning Contract,Bulloughs Cleaning Services Ltd,577.85
201903,201903104462,R2700,Cleaning Contract,Bulloughs Cleaning Services Ltd,"1,444.64"
201903,201903104481,R7006,North West Ambulance Service - Estates Management Collaboration,BID Group Ltd,"1,161.00"
201903,201903104490,R7006,North West Ambulance Service - Estates Management Collaboration,BID Group Ltd,"1,125.00"
201903,201903104493,R7006,North West Ambulance Service - Estates Management Collaboration,BID Group Ltd,"1,927.00"
201903,201903104496,R7006,North West Ambulance Service - Estates Management Collaboration,BID Group Ltd,976.00
201903,201903104532,R4540,Canteen - Hot Drink Machines,Rijo 42 Ingredients Ltd,562.94
201903,201903104622,R4540,Canteen - Hot Drink Machines,BNP Paribas Leasing Solutions Ltd,519.99
201903,201903104625,R4540,Canteen - Hot Drink Machines,BNP Paribas Leasing Solutions Ltd,519.99
201903,201903104628,R4540,Canteen - Hot Drink Machines,BNP Paribas Leasing Solutions Ltd,519.99
201903,201903104631,R4540,Canteen - Hot Drink Machines,BNP Paribas Leasing Solutions Ltd,519.99
201903,201903104690,R4520,Canteen - Purchase of Food / Ingredients,PFD (Carlisle) Ltd t/a Pioneer Foodservice,"1,097.76"
201903,201903104693,R4520,Canteen - Purchase of Food / Ingredients,PFD (Carlisle) Ltd t/a Pioneer Foodservice,666.23
201903,201903104696,R4520,Canteen - Purchase of Food / Ingredients,PFD (Carlisle) Ltd t/a Pioneer Foodservice,648.20
201903,201903104699,R4520,Canteen - Purchase of Food / Ingredients,PFD (Carlisle) Ltd t/a Pioneer Foodservice,701.18
201903,201903104702,R4520,Canteen - Purchase of Food / Ingredients,PFD (Carlisle) Ltd t/a Pioneer Foodservice,"1,155.00"
201903,201903104705,R4520,Canteen - Purchase of Food / Ingredients,PFD (Carlisle) Ltd t/a Pioneer Foodservice,622.17
201903,201903104708,R4520,Canteen - Purchase of Food / Ingredients,PFD (Carlisle) Ltd t/a Pioneer Foodservice,"1,143.00"
201903,201903104714,R2830,Professional Fees,Hyde Harrington Ltd,"1,852.00"
201903,201903104733,R3460,Accident Damage (Below Insurance Threshold),Thompson Accident Repair Centre,"1,000.00"
201903,201903104736,R3450,Accident Damage (Below Insurance Excess)),Thompson Accident Repair Centre,754.40
201903,201903104739,R3460,Accident Damage (Below Insurance Threshold),Thompson Accident Repair Centre,637.70
201903,201903104741,R3460,Accident Damage (Below Insurance Threshold),Thompson Accident Repair Centre,"1,000.00"
201903,201903104744,R3450,Accident Damage (Below Insurance Excess)),Thompson Accident Repair Centre,973.36
201903,201903104766,R2220,Planned Survey Internal Maintenance,Refrigeration (Mitton) Ltd,"1,846.00"
201903,201903104775,R2410,Minor Works,Refrigeration (Mitton) Ltd,"1,276.00"
201903,201903104778,R2235,Planned Survey Environmental Services/Plumbing,Refrigeration (Mitton) Ltd,"2,220.00"
201903,201903104781,C2830,Professional Fees,Unwin Jones Partnership,"5,000.00"
201903,201903104793,C2390,Land & Buildings Purchases,Unwin Jones Partnership,"6,000.00"
201903,201903104817,R7006,North West Ambulance Service - Estates Management Collaboration,Dawson Electrical Services Ltd,580.00
201903,201903104823,R7006,North West Ambulance Service - Estates Management Collaboration,Dawson Electrical Services Ltd,"3,669.50"
201903,201903104826,R7006,North West Ambulance Service - Estates Management Collaboration,Dawson Electrical Services Ltd,510.00
201903,201903104829,R7006,North West Ambulance Service - Estates Management Collaboration,Dawson Electrical Services Ltd,"1,680.00"
201903,201903104882,R2410,Minor Works,Cumbria Mechanical Plumbing Ltd,"1,975.00"
201903,201903104885,R2010,Unplanned Building Services Boiler & Heating Plant,Cumbria Mechanical Plumbing Ltd,596.93
201903,201903104897,R7006,North West Ambulance Service - Estates Management Collaboration,Cumbria Mechanical Plumbing Ltd,594.62
201903,201903104967,C3905,Vehicle Adaptations - Capital,Cubby's Sign Ltd,552.00
201903,201903104981,R2610,Estates Leases,Walton Goodland Limited,"1,324.29"
201903,201903105134,R2460,Grounds Maintenance - Contract,S Nicholson Grounds Maintenance,750.00
201903,201903105319,R3917,Bicycle Maintenance Costs,Arragons Cycle Centre,771.15
201903,201903105335,R2640,Room Hire,Penrith Rugby Union Football Club,612.50
201903,201903105347,R7006,North West Ambulance Service - Estates Management Collaboration,R B Loveridge & Son Ltd,"1,152.42"
201903,201903105412,R2080,Unplanned Building Services External Other,John Sandelands Ltd,"1,257.33"
201903,201903105489,C2245,Planned Survey Alterations & Improvements,Thomas Armstrong (Construction) Ltd,"101,676.87"
201903,201903105493,R2600,Rent,Eden Valley Railway Company,875.00
201903,201903105502,R2210,Planned Survey External Maintenance,Frederick Potts & Sons Ltd,"1,251.00"
201903,201903105517,C2830,Professional Fees,Baker Mallett LLP,827.24
201903,201903105538,R2410,Minor Works,Maurice Bewley Electrical Contractor,524.00
201903,201903105555,R4515,Catering - Training (Cumbria),Westmorland Ltd (Rheged Discovery Centre),620.00
201903,201903105598,C3900,Vehicle Purchases - Capital,Ford Motor Co Ltd T/A Parts Plus,"19,298.08"
201903,201903105601,C3900,Vehicle Purchases - Capital,Ford Motor Co Ltd T/A Parts Plus,"27,155.01"
201903,201903105604,C3900,Vehicle Purchases - Capital,Ford Motor Co Ltd T/A Parts Plus,"27,155.01"
201903,201903106100,R3980,Vehicle Road Fund Licenses,Post Office Counters Ltd,935.00
201903,201903106109,R2680,PFI Occupancy Charges,West Cumbria Estates Management Limited,"100,965.33"
201903,201903106148,R2500,Oil,Scottish Fuels,"3,968.17"
201903,201903106154,R2500,Oil,Scottish Fuels,"5,749.00"
201903,201903106157,R2500,Oil,Scottish Fuels,"5,524.38"
201903,201903106258,R3120,Vehicle Maintenance - Parts Purchase,Arnold Clark Automobiles Ltd,"1,185.56"
201903,201903106304,R2277,Planned Servicing Water Chlorination,Clearwater Technology Limited,555.33
201903,201903106307,R2510,Electricity,British Gas Trading,"9,142.20"
201903,201903106324,R3210,Police Vehicle Recovery & Transport,FMG Support (RRRM) Ltd,"2,411.00"
201903,201903106341,C3900,Vehicle Purchases - Capital,Hyundai Motor UK Ltd,"15,800.00"
201903,201903106356,R2730,Refuse,Biffa Waste Services Ltd,507.52
201903,201903106362,R2730,Refuse,Biffa Waste Services Ltd,591.60
201903,201903106459,C3905,Vehicle Adaptations - Capital,Jack Hodson Ltd,"6,770.99"
201903,201903106462,C3905,Vehicle Adaptations - Capital,Jack Hodson Ltd,"2,485.00"
201903,201903106542,R2600,Rent,Westmorland County Agricultural Society,800.00
201903,201903106690,R2660,Business Rates,Barrow Borough Council,"168,840.00"
201903,201903106746,R3120,Vehicle Maintenance - Parts Purchase,Guy Perry Ltd,802.14
201903,201903106856,R2505,Gas,Flogas Britain Ltd,691.32
201903,201903106979,C3900,Vehicle Purchases - Capital,Vauxhall Motors Ltd,"20,731.70"
201903,201903106996,R2830,Professional Fees,DSSR Consulting Engineers,"2,400.00"
201903,201903107048,R2740,Destruction of Confidential Waste,Shred-it (Europe) Ltd,"1,194.00"
201903,201903107104,R2610,Estates Leases,Ulverston Properties Ltd,780.00
201903,201903107276,R2610,Estates Leases,National Crime Agency (NCA),505.78
201903,201903107285,C3900,Vehicle Purchases - Capital,Ford Motor Co Ltd T/A Parts Plus,"19,710.60"
201903,201903107288,C3900,Vehicle Purchases - Capital,Ford Motor Co Ltd T/A Parts Plus,"19,710.60"
201903,201903107291,C3900,Vehicle Purchases - Capital,Ford Motor Co Ltd T/A Parts Plus,"19,710.60"
201903,201903107294,C3900,Vehicle Purchases - Capital,Ford Motor Co Ltd T/A Parts Plus,"27,155.01"
201903,201903107297,C3900,Vehicle Purchases - Capital,Ford Motor Co Ltd T/A Parts Plus,"20,153.67"
201903,201903107300,C3900,Vehicle Purchases - Capital,Ford Motor Co Ltd T/A Parts Plus,"20,153.67"
201903,201903107303,C3900,Vehicle Purchases - Capital,Ford Motor Co Ltd T/A Parts Plus,"20,153.67"
201903,201903107331,R2510,Electricity,EDF Energy,"5,947.76"
201903,201903107336,R2510,Electricity,EDF Energy,"3,180.23"
201903,201903107341,R2510,Electricity,EDF Energy,"18,040.08"
201903,201903107343,R2530,Climate Change Levy,EDF Energy,922.71
201903,201903107346,R2510,Electricity,EDF Energy,"10,311.17"
201903,201903107348,R2530,Climate Change Levy,EDF Energy,525.04
201903,201903108175,R2410,Minor Works,Dorma UK Ltd,"2,135.31"
201903,201903108188,R2800,Security and Alarms (inc locks),Digital ID,"11,334.00"
201903,201903108199,R7006,North West Ambulance Service - Estates Management Collaboration,Countrywide Grounds Maintenance Ltd,641.66
201903,201903108202,R7006,North West Ambulance Service - Estates Management Collaboration,Countrywide Grounds Maintenance Ltd,"1,045.00"
201903,201903108205,R7006,North West Ambulance Service - Estates Management Collaboration,Countrywide Grounds Maintenance Ltd,605.00
201903,201903108260,R3020,Workshop Equipment & Tools - Servicing / Repairs,Autodata Ltd,"1,627.20"
201903,201903108272,C2220,Planned Survey Internal Works,W S Controls Ltd,"6,117.00"
201903,201903108278,R2550,Metered Water,Water Plus Ltd,535.91
201903,201903108280,R2555,Water Rates,Water Plus Ltd,742.41
201903,201903108283,R2555,Water Rates,Water Plus Ltd,"1,847.19"
201903,201903108286,R2555,Water Rates,Water Plus Ltd,816.41
201903,201903108297,R2550,Metered Water,Water Plus Ltd,"5,392.03"
201903,201903108299,R2565,Sewerage & Environmental Services,Water Plus Ltd,"7,157.83"
201903,201903108302,C3900,Vehicle Purchases - Capital,JPG Cars Ltd,"4,322.30"
201903,201903108305,C3900,Vehicle Purchases - Capital,JPG Cars Ltd,"5,294.37"
201903,201903108389,R3120,Vehicle Maintenance - Parts Purchase,Castrol (UK) Ltd,705.16
201903,201903108408,R2505,Gas,Corona Energy,"4,315.94"
201903,201903108525,R3510,Vehicle Fuel,Allstar Business Solutions Ltd,588.28
201903,201903108528,R3510,Vehicle Fuel,Allstar Business Solutions Ltd,"1,246.49"
201903,201903108531,R3510,Vehicle Fuel,Allstar Business Solutions Ltd,"59,390.12"
201903,201903108537,R3510,Vehicle Fuel,Allstar Business Solutions Ltd,"2,710.64"
201903,201903108544,R3510,Vehicle Fuel,Allstar Business Solutions Ltd,"3,551.42"
201903,201903108556,R3510,Vehicle Fuel,Allstar Business Solutions Ltd,"1,049.51"
201903,201903108559,R3510,Vehicle Fuel,Allstar Business Solutions Ltd,"1,881.67"
201903,201903108562,R3510,Vehicle Fuel,Allstar Business Solutions Ltd,592.86
201903,201903108585,R2245,Planned Survey Alterations & Improvements,Instock Disposables,"3,996.17"
201903,201903108621,R2725,Cleaning Materials,Arrow County Supplies,"1,142.00"
201903,201903108636,R2290,Planned Servicing General Maintenance,Ductbusters Limited,"3,255.00"
201903,201903108639,C2220,Planned Survey Internal Works,Ductbusters Limited,"2,920.00"
201903,201903108670,R2040,Unplanned Building Services Fire Systems,Chubb Fire & Security Limited,603.00
201903,201903108676,R3460,Accident Damage (Below Insurance Threshold),James Alpe Ltd,792.65
201903,201903108678,R3460,Accident Damage (Below Insurance Threshold),James Alpe Ltd,"1,000.00"
201903,201903108681,R3460,Accident Damage (Below Insurance Threshold),James Alpe Ltd,763.52
201903,201903108683,R3460,Accident Damage (Below Insurance Threshold),James Alpe Ltd,"1,000.00"
201903,201903108686,R3460,Accident Damage (Below Insurance Threshold),James Alpe Ltd,"1,690.46"
201903,201903108688,R3460,Accident Damage (Below Insurance Threshold),James Alpe Ltd,"1,000.00"
201903,201903108760,R2700,Cleaning Contract,Bulloughs Cleaning Services Ltd,"12,622.00"
201903,201903108762,R2700,Cleaning Contract,Bulloughs Cleaning Services Ltd,"3,610.25"
201903,201903108764,R2700,Cleaning Contract,Bulloughs Cleaning Services Ltd,577.85
201903,201903108768,R2700,Cleaning Contract,Bulloughs Cleaning Services Ltd,"4,937.90"
201903,201903108772,R2700,Cleaning Contract,Bulloughs Cleaning Services Ltd,"2,337.56"
201903,201903108774,R2700,Cleaning Contract,Bulloughs Cleaning Services Ltd,"3,524.91"
201903,201903108776,R2700,Cleaning Contract,Bulloughs Cleaning Services Ltd,"1,444.64"
201903,201903108780,R2700,Cleaning Contract,Bulloughs Cleaning Services Ltd,577.85
201903,201903108792,R2700,Cleaning Contract,Bulloughs Cleaning Services Ltd,"1,444.64"
201903,201903108809,R7006,North West Ambulance Service - Estates Management Collaboration,BID Group Ltd,573.75
201903,201903108869,R2263,Planned Servicing Security & Security Equipment Maintenance,Cell Security Limited,"5,024.00"
201903,201903108876,R3120,Vehicle Maintenance - Parts Purchase,Lloyd Motors Ltd,646.00
201903,201903108924,R2840,Asset Valuation Fees,Carigiet Cowen Limited,"1,750.00"
201903,201903108934,R2840,Asset Valuation Fees,Carigiet Cowen Limited,750.00
201903,201903108954,R4520,Canteen - Purchase of Food / Ingredients,PFD (Carlisle) Ltd t/a Pioneer Foodservice,"1,039.20"
201903,201903108957,R4520,Canteen - Purchase of Food / Ingredients,PFD (Carlisle) Ltd t/a Pioneer Foodservice,981.53
201903,201903108970,R7006,North West Ambulance Service - Estates Management Collaboration,Top Notch Contractors Ltd,"4,295.00"
201903,201903108973,R3460,Accident Damage (Below Insurance Threshold),Thompson Accident Repair Centre,642.01
201903,201903108975,R3460,Accident Damage (Below Insurance Threshold),Thompson Accident Repair Centre,"1,000.00"
201903,201903108978,R3460,Accident Damage (Below Insurance Threshold),Thompson Accident Repair Centre,982.30
201903,201903108983,R3460,Accident Damage (Below Insurance Threshold),Thompson Accident Repair Centre,"1,000.00"
201903,201903108996,R2185,Unplanned Building Maintenance Internal Structures,Compass Services Group (Cabling Systems) Ltd,"2,480.47"
201903,201903109005,R2220,Planned Survey Internal Maintenance,Contract Flooring (Cumbria) Ltd,790.00
201903,201903109008,R2220,Planned Survey Internal Maintenance,Contract Flooring (Cumbria) Ltd,"1,950.00"
201903,201903109041,C2830,Professional Fees,Unwin Jones Partnership,"5,000.00"
201903,201903109047,R2240,Planned Survey Safety Works,B K Screenprint,560.00
201903,201903109064,R7006,North West Ambulance Service - Estates Management Collaboration,Dawson Electrical Services Ltd,670.00
201903,201903109073,R2050,Unplanned Building Services Electrics,Dawson Electrical Services Ltd,"1,070.00"
201903,201903109079,R2230,Planned Survey Electrics,Dawson Electrical Services Ltd,"2,380.00"
201903,201903109100,R2210,Planned Survey External Maintenance,Graeme Howe Fencing Ltd,"9,800.00"
201903,201903109103,R2210,Planned Survey External Maintenance,Graeme Howe Fencing Ltd,"1,520.00"
201903,201903109136,R2010,Unplanned Building Services Boiler & Heating Plant,Cumbria Mechanical Plumbing Ltd,748.00
201903,201903109139,R2050,Unplanned Building Services Electrics,JJ Group (Contracting) Ltd,970.25
201903,201903109142,R2050,Unplanned Building Services Electrics,JJ Group (Contracting) Ltd,"1,086.65"
201903,201903109157,R2010,Unplanned Building Services Boiler & Heating Plant,Cumbria Mechanical Plumbing Ltd,904.00
201903,201903109160,R2205,Planned Survey Non Structural Maintenance,Cumbria Mechanical Plumbing Ltd,"2,516.00"
201903,201903109296,R3120,Vehicle Maintenance - Parts Purchase,Cubby's Sign Ltd,640.00
201903,201903109308,R2565,Sewerage & Environmental Services,Carlisle City Council,"17,553.25"
201903,201903109311,R2565,Sewerage & Environmental Services,Carlisle City Council,"269,640.00"
201903,201903109314,R2565,Sewerage & Environmental Services,Carlisle City Council,"5,401.00"
201903,201903109317,R2565,Sewerage & Environmental Services,Carlisle City Council,527.83
201903,201903109320,R2565,Sewerage & Environmental Services,Carlisle City Council,"7,242.25"
201903,201903109323,R2565,Sewerage & Environmental Services,Carlisle City Council,"6,505.75"
201903,201903109326,R2610,Estates Leases,Carlisle City Council,"7,750.00"
201903,201903109516,R2240,Planned Survey Safety Works,Lowther Forestry Group Ltd,680.00
201903,201903109621,R2070,Unplanned Building Services Internal Other,R B Loveridge & Son Ltd,713.07
201903,201903109632,R2170,Unplanned Building Maintenance External Maintenance,Metcalfe Plant & Tool Ltd,"1,456.00"
201903,201903109638,R2210,Planned Survey External Maintenance,Keswick Superglaze Ltd,"10,283.76"
201903,201903109676,R2225,Planned Internal Structures,John Sandelands Ltd,"1,290.00"
201903,201903109716,R2210,Planned Survey External Maintenance,J A Lee Cleaning Contractors Limited,"5,755.00"
201903,201903109738,R2210,Planned Survey External Maintenance,Mark Tubman (Locksmith & Joinery),"2,800.00"
201903,201903109745,C2245,Planned Survey Alterations & Improvements,Thomas Armstrong (Construction) Ltd,"147,663.11"
201903,201903109748,R2185,Unplanned Building Maintenance Internal Structures,P Richardson Limited,"21,629.00"
201903,201903109751,R2185,Unplanned Building Maintenance Internal Structures,P Richardson Limited,"1,294.00"
201903,201903109767,R2205,Planned Survey Non Structural Maintenance,Frederick Potts & Sons Ltd,"3,144.60"
201903,201903109770,R2286,Planned Servicing Generators/UPS,Frederick Potts & Sons Ltd,"1,495.00"
201903,201903109776,R2225,Planned Internal Structures,Frederick Potts & Sons Ltd,"2,538.00"
201903,201903109788,R2215,Planned Survey Structural Maintenance,Frederick Potts & Sons Ltd,"6,591.00"
201903,201903109797,R2225,Planned Internal Structures,Frederick Potts & Sons Ltd,"2,380.00"
201903,201903109806,C2830,Professional Fees,Baker Mallett LLP,827.24
201903,201903109815,R2660,Business Rates,Copeland Borough Council,"61,488.00"
201903,201903109818,R2660,Business Rates,Copeland Borough Council,871.53
201903,201903109832,R2230,Planned Survey Electrics,Margrange Ltd,"14,879.29"
201903,201903109853,C2830,Professional Fees,Tweddell & Slater Limited,"3,410.13"
201903,201903109908,C3900,Vehicle Purchases - Capital,Ford Motor Co Ltd T/A Parts Plus,"27,155.01"
201903,201903110546,R2680,PFI Occupancy Charges,West Cumbria Estates Management Limited,"100,965.33"
201903,201903110549,R2050,Unplanned Building Services Electrics,West Cumbria Estates Management Limited,"1,175.69"
201903,201903110605,R2500,Oil,Scottish Fuels,"1,754.10"
201903,201903110608,R2500,Oil,Scottish Fuels,"3,529.25"
201903,201903110614,R2500,Oil,Scottish Fuels,"5,793.00"
201903,201903110668,R3120,Vehicle Maintenance - Parts Purchase,Arnold Clark Automobiles Ltd,599.51
201903,201903110670,R3120,Vehicle Maintenance - Parts Purchase,Arnold Clark Automobiles Ltd,"1,460.06"
201903,201903110672,R3120,Vehicle Maintenance - Parts Purchase,Arnold Clark Automobiles Ltd,546.59
201903,201903110751,R2277,Planned Servicing Water Chlorination,Clearwater Technology Limited,555.33
201903,201903110763,R2510,Electricity,British Gas Trading,"7,068.01"
201903,201903110788,C3900,Vehicle Purchases - Capital,Hyundai Motor UK Ltd,"17,338.04"
201903,201903110949,C2220,Planned Survey Internal Works,FTS Fire & Security Ltd,"1,128.00"
201903,201903110961,R2265,Planned Servicing Fire Systems,FTS Fire & Security Ltd,784.00
201903,201903110964,R2220,Planned Survey Internal Maintenance,FTS Fire & Security Ltd,"1,112.00"
201903,201903110967,R2220,Planned Survey Internal Maintenance,FTS Fire & Security Ltd,"1,464.00"
201903,201903110976,R2265,Planned Servicing Fire Systems,FTS Fire & Security Ltd,932.70
201903,201903110978,R2265,Planned Servicing Fire Systems,FTS Fire & Security Ltd,664.00
201903,201903110981,R2230,Planned Survey Electrics,Ian Robinson,"7,300.00"
201903,201903111003,R3120,Vehicle Maintenance - Parts Purchase,Lloyd Motors South Lakes Ltd,593.39
201903,201903111020,R3010,Workshop Equipment & Tools - Purchases,Snap On Holdings Ltd,"1,813.60"
201903,201903111043,R3120,Vehicle Maintenance - Parts Purchase,E K Motor Factors Ltd,"1,221.95"
201903,201903111066,R3120,Vehicle Maintenance - Parts Purchase,Guy Perry Ltd,861.22
201903,201903111090,R2610,Estates Leases,Millom Network Centre,"1,706.25"
201903,201903111147,R2505,Gas,Flogas Britain Ltd,634.85
201903,201903111177,R2210,Planned Survey External Maintenance,Cromwell Tools,547.19
201903,201903111195,R2210,Planned Survey External Maintenance,Aberswift De-Leading Specialists Limited,"9,740.00"
201903,201903111301,R2830,Professional Fees,DSSR Consulting Engineers,"-2,400.00"
201903,201903111304,R2830,Professional Fees,DSSR Consulting Engineers,"3,600.00"
201903,201903111373,R2610,Estates Leases,Ulverston Properties Ltd,780.00
201903,201903111496,R2235,Planned Survey Environmental Services/Plumbing,Zip Heaters UK Ltd,"3,178.96"
201903,201903111499,R2235,Planned Survey Environmental Services/Plumbing,Zip Heaters UK Ltd,"3,162.17"
201903,201903111502,R2235,Planned Survey Environmental Services/Plumbing,Zip Heaters UK Ltd,"3,162.17"
201903,201903111505,R2235,Planned Survey Environmental Services/Plumbing,Zip Heaters UK Ltd,"2,910.31"
201903,201903111508,R2235,Planned Survey Environmental Services/Plumbing,Zip Heaters UK Ltd,"3,162.17"
201903,201903111511,R2230,Planned Survey Electrics,Zip Heaters UK Ltd,"13,417.04"
201903,201903111517,R2235,Planned Survey Environmental Services/Plumbing,Zip Heaters UK Ltd,994.50
201903,201903111538,C3900,Vehicle Purchases - Capital,Ford Motor Co Ltd T/A Parts Plus,"27,155.01"
201903,201903111588,R2510,Electricity,EDF Energy,"5,299.88"
201903,201903111593,R2510,Electricity,EDF Energy,"15,680.08"
201903,201903111595,R2530,Climate Change Levy,EDF Energy,797.40
201903,201903111598,R2510,Electricity,EDF Energy,"9,124.26"
201903,201903111603,R2510,Electricity,EDF Energy,"2,898.33"
201903,201903111629,R2286,Planned Servicing Generators/UPS,Power Tecnique Limited,"28,260.00"
201903,201903111703,R4517,Catering - Training (Lancashire),Police and Crime Commissioner for Lancashire,953.25
201903,201903112449,R2410,Minor Works,Dorma UK Ltd,"1,336.46"
201903,201903112463,R7006,North West Ambulance Service - Estates Management Collaboration,Countrywide Grounds Maintenance Ltd,641.66
201903,201903112508,C2235,Planned Survey Environmental Services/Plumbing,W S Controls Ltd,"11,915.00"
201903,201903112511,R2550,Metered Water,Water Plus Ltd,"5,384.83"
201903,201903112513,R2565,Sewerage & Environmental Services,Water Plus Ltd,"6,674.09"
201903,201903112522,C3900,Vehicle Purchases - Capital,JPG Cars Ltd,"5,075.40"
201903,201903112525,C3900,Vehicle Purchases - Capital,JPG Cars Ltd,"4,473.05"
201903,201903112528,C3900,Vehicle Purchases - Capital,JPG Cars Ltd,"4,813.00"
201903,201903112531,C3900,Vehicle Purchases - Capital,JPG Cars Ltd,"5,377.73"
201903,201903112575,R2235,Planned Survey Environmental Services/Plumbing,Independent Humidifier Services Ltd,841.19
201903,201903112636,R3120,Vehicle Maintenance - Parts Purchase,Castrol (UK) Ltd,"1,539.24"
201903,201903112639,R3120,Vehicle Maintenance - Parts Purchase,Castrol (UK) Ltd,715.56
201903,201903112669,R2505,Gas,Corona Energy,"10,614.43"
201903,201903100059,R6660,Counsel Fees,Atlantic Chambers,"1,188.00"
201903,201903102132,B4053,Redacted: Disclosure of Information would breach the Data Protection Act.,Redacted: Disclosure of Information would breach the Data Protection Act.,"7,800.00"
201903,201903104105,B4006,Redacted: Disclosure of Information would breach the Data Protection Act.,Redacted: Disclosure of Information would breach the Data Protection Act.,511.50
201903,201903105621,R6660,Redacted: Disclosure of Information would breach the Data Protection Act.,Redacted: Disclosure of Information would breach the Data Protection Act.,624.36
201903,201903106371,B4003,Redacted: Disclosure of Information would breach the Data Protection Act.,Redacted: Disclosure of Information would breach the Data Protection Act.,"1,833.00"
201903,201903106474,B4003,Redacted: Disclosure of Information would breach the Data Protection Act.,Redacted: Disclosure of Information would breach the Data Protection Act.,"4,375.00"
201903,201903107098,R6660,Redacted: Disclosure of Information would breach the Data Protection Act.,Redacted: Disclosure of Information would breach the Data Protection Act.,714.00
201903,201903108633,B4006,Redacted: Disclosure of Information would breach the Data Protection Act.,Redacted: Disclosure of Information would breach the Data Protection Act.,"8,100.00"
201903,201903109913,R6660,Redacted: Disclosure of Information would breach the Data Protection Act.,Redacted: Disclosure of Information would breach the Data Protection Act.,"1,992.00"
201903,201903110794,B4004,Redacted: Disclosure of Information would breach the Data Protection Act.,Redacted: Disclosure of Information would breach the Data Protection Act.,"2,216.22"
201903,201903111328,B4004,Redacted: Disclosure of Information would breach the Data Protection Act.,Redacted: Disclosure of Information would breach the Data Protection Act.,"2,647.20"
201903,201903111632,R6660,Redacted: Disclosure of Information would breach the Data Protection Act.,Redacted: Disclosure of Information would breach the Data Protection Act.,"1,740.00"
